Cogmind - Beta 13 @@@ ROGUE MODE // 2024.03.13 @ 23:10:06 // Winter2019/RPGLIKE Player: H3-RMN Result: Destroyed by S-43 Plague with Heavy Machine Gun Performance ------------- Evolutions (9) 4500 Regions Visited (34) 6800 Robots Destroyed (775) 3875 Value Destroyed (46002) 46002 Prototype IDs (129) 2580 Alien Tech Used (15) 3000 Bonus (48468) 48468 TOTAL SCORE: 115225 Bonus ------- Triggered High Security 1500 High Alert Combat Kills 12464 Follower Combat Kills 3191 Installed LC Capacitor 1000 Network Hubs Disabled 400 Met Data Miner 300 Met Zhirov 300 Met Warlord at Base 500 MAIN.C Attacked Warlord 500 Warlord Defense Kills 4340 Met R17 at Cetus 500 Found Hidden Lab 3000 Used Core Reset Matrix 3000 Scanned by Researcher 500 Pursued by Intercept 1000 Met Sigix 2000 Destroyed MAIN.C Guards 500 Destroyed MAIN.C Shell 5000 Destroyed MAIN.C 10000 Friendly Fire -1527 Cogmind --------- Core Integrity 0/2950 Matter 295/300 Energy 691/1200 System Corruption 0% Temperature Cool (0) Movement Immobile (Siege) Ox1 Location -1/Command Parts ------- > --- POWER (4) -------- Improved Quantum Reactor Improved Quantum Reactor Vortex Chain Reactor > --- PROPULSION (4) --- Experimental Biometal Heavy Treads Advanced Heavy Siege Treads > --- UTILITY (14) ----- Coolant Network Long-range Terrain Scanner Experimental Core Analyzer Experimental Core Analyzer Precision Energy Filter Advanced Particle Accelerator Quantum Capacitor Medium Regenerative Plating Thermal Barrier Experimental EM Disruption Field AEGIS Remote Shield > --- WEAPON (4) ------- L-Cannon > --- INVENTORY (8) ---- Protomatter-42 Multirail Sigix Containment Pod Peak State ------------ > --- POWER ------------ Improved Quantum Reactor Improved Quantum Reactor Vortex Chain Reactor > --- PROPULSION ------- Experimental Biometal Heavy Treads Advanced Heavy Siege Treads > --- UTILITY ---------- Coolant Network Long-range Terrain Scanner Experimental Core Analyzer Experimental Core Analyzer Advanced Particle Accelerator Quantum Capacitor Medium Regenerative Plating Experimental EM Disruption Field AEGIS Remote Shield LC Capacitor > --- WEAPON ----------- Drained L-Cannon > --- INVENTORY -------- Precision Energy Filter Thermal Barrier Transdimensional Reconstructor High-powered Transdimensional Reconstructor Subatomic Replicator Sigix Containment Pod [Rating: 279] Favorites ----------- Power Quantum Reactor Engine Improved Ion Engine Power Core Neutrino Core Reactor Quantum Reactor Propulsion Centrium Heavy Treads Treads Centrium Heavy Treads Wheel Armored Huge Wheel Hover Unit Combat Airjet Utility Experimental Core Analyzer Device Coolant Network Storage Advanced Energy Well Processor Experimental Core Analyzer Hackware Hacking Suite Protection Centrium Light Armor Plating Artifact LC Capacitor Weapon Powered Cannon Energy Gun Tachyon Dispersion Ray Energy Cannon Powered Cannon Ballistic Gun Battle Rifle Ballistic Cannon Slug Cannon Launcher Mini Smartbomb Launcher Special Weapon Guided Remote Datajack Impact Weapon Core Stripper Slashing Weapon Scythe Piercing Weapon Plasma Lance Build | -11 -10 -10 -10 -8 -7 -7 -7 -7 -7 -7 -6 -6 -6 -6 -6 -6 -5 -5 -5 -5 -4 -4 -4 -4 -4 -3 -3 -3 -3 -2 -2 -2 -1 -1 ------- Run | Yrd Mat Min Sub Mat Fac Was Fac Low Low Dat Pro Fac Ext Cet Arc Hub Fac Upp Upp Zhi Pro Fac Upp Upp War Pro Res Arm Lab Res Qua Sec Acc Com Slots Evolved 20 | 3 . . 2 2 1 . 3 1 1 . . 2 . 2 . . . 1 . . . . . . . . 1 . . 1 . . . . Power 2 | . . . . . . . . . . . . 1 . 1 . . . . . . . . . . . . . . . . . . . . Propulsion 3 | 1 . . . 1 . . . 1 . . . . . . . . . . . . . . . . . . . . . . . . . . Utility 12 | 1 . . 2 1 1 . 3 . 1 . . . . 1 . . . 1 . . . . . . . . 1 . . . . . . . Weapon 3 | 1 . . . . . . . . . . . 1 . . . . . . . . . . . . . . . . . 1 . . . . Parts Attached 313 | 6 7 . 23 10 12 6 13 1 1 . 3 23 . 3 6 2 33 1 3 5 2 12 . 2 14 1 3 14 26 5 23 42 1 10 Power 31 | 1 1 . . 2 1 . 1 . . . . 3 . 1 . . 2 . . 2 . 2 . . 1 . . . 3 1 6 4 . . Engine 5 | 1 . . . 2 . . 1 . . . . . . . . . . . . . . . . . . . . . . . 1 . . . Core 4 | . 1 . . . 1 . . . . . . . . . . . . . . . . . . . . . . . . . 1 1 . . Reactor 22 | . . . . . . . . . . . . 3 . 1 . . 2 . . 2 . 2 . . 1 . . . 3 1 4 3 . . Propulsion 32 | 2 2 . . 2 4 1 7 1 . . . 4 . . . 1 3 . . . . . . . . . . 2 . . 2 1 . . Treads 9 | 1 1 . . . . . . . . . . . . . . . 2 . . . . . . . . . . 2 . . 2 1 . . Leg . | . . . . . . . . . . . . . . . . . . . . . . . . . . . . . . . . . . . Wheel 3 | 1 . . . 2 . . . . . . . . . . . . . . . . . . . . . . . . . . . . . . Hover 20 | . 1 . . . 4 1 7 1 . . . 4 . . . 1 1 . . . . . . . . . . . . . . . . . Flight . | . . . . . . . . . . . . . . . . . . . . . . . . . . . . . . . . . . . Utility 175 | 1 2 . 3 5 7 5 5 . 1 . 3 10 . 2 6 1 27 1 3 3 2 8 . 2 11 1 3 10 19 2 10 21 . 1 Device 116 | 1 2 . 1 1 4 4 3 . . . 1 6 . . 1 1 19 1 2 1 2 8 . 2 7 1 2 5 11 2 9 18 . 1 Storage 3 | . . . . . . . . . . . . . . . . . . . . . . . . . 1 . 1 . 1 . . . . . Processor 9 | . . . 1 . 1 . . . . . 1 3 . . . . 3 . . . . . . . . . . . . . . . . . Hackware 13 | . . . . 3 . . 1 . . . . . . . 5 . . . . . . . . . 1 . . . 2 . 1 . . . Protection 30 | . . . 1 1 2 1 1 . 1 . 1 1 . 2 . . 5 . 1 2 . . . . 2 . . 5 2 . . 2 . . Artifact 4 | . . . . . . . . . . . . . . . . . . . . . . . . . . . . . 3 . . 1 . . Weapon 75 | 2 2 . 20 1 . . . . . . . 6 . . . . 1 . . . . 2 . . 2 . . 2 4 2 5 16 1 9 Energy Gun 14 | . . . . . . . . . . . . 2 . . . . . . . . . . . . . . . . 1 1 2 6 . 2 Energy Cannon 15 | . . . 1 . . . . . . . . 1 . . . . . . . . . . . . 1 . . . 1 1 1 3 1 5 Ballistic Gun 18 | 2 1 . 9 . . . . . . . . 1 . . . . . . . . . . . . . . . . . . . 4 . 1 Ballistic Cannon 3 | . . . 1 . . . . . . . . . . . . . . . . . . . . . . . . . . . 1 1 . . Launcher 13 | . . . 4 . . . . . . . . 2 . . . . 1 . . . . 2 . . 1 . . 2 1 . . . . . Special Weapon 2 | . . . 1 . . . . . . . . . . . . . . . . . . . . . . . . . 1 . . . . . Impact Weapon 1 | . . . . . . . . . . . . . . . . . . . . . . . . . . . . . . . 1 . . . Slashing Weapon 6 | . 1 . 4 1 . . . . . . . . . . . . . . . . . . . . . . . . . . . . . . Piercing Weapon 3 | . . . . . . . . . . . . . . . . . . . . . . . . . . . . . . . . 2 . 1 Special Melee Weapon . | . . . . . . . . . . . . . . . . . . . . . . . . . . . . . . . . . . . Unidentified Prototypes 76 | . . . 1 . . 1 2 . . . . 11 . 1 . . 9 . . 2 . 2 . 1 8 . 1 2 19 3 5 7 . 1 Parts Lost 5 | . . . 1 . . . . . . . . . 1 . . . 1 . . . . . . . . . . . . . 1 . . 1 Power 1 | . . . . . . . . . . . . . . . . . . . . . . . . . . . . . . . 1 . . . Propulsion . | . . . . . . . . . . . . . . . . . . . . . . . . . . . . . . . . . . . Utility 4 | . . . 1 . . . . . . . . . 1 . . . 1 . . . . . . . . . . . . . . . . 1 Weapon . | . . . . . . . . . . . . . . . . . . . . . . . . . . . . . . . . . . . Highest Loss Streak 1 | . . . 1 . . . . . . . . . 1 . . . 1 . . . . . . . . . . . . . 1 . . 1 To Critical Strikes . | . . . . . . . . . . . . . . . . . . . . . . . . . . . . . . . . . . . Average Slot Usage (%) 79 | . 100 100 79 63 81 87 88 89 89 85 90 92 95 93 94 94 85 76 77 76 77 76 77 76 74 73 74 74 52 68 71 69 74 70 Engine 1 | . 5 . . 6 10 6 5 5 5 5 5 4 4 3 . . . . . . . . . . . . . . . . . . . . Core 1 | . 9 14 9 2 . 6 5 5 5 5 5 4 4 3 . . . . . . . . . . . . . . . . . . . . Reactor 8 | . . . . . . . . . . . . 2 9 10 14 14 14 13 13 13 13 13 13 13 9 8 8 8 3 11 12 10 11 11 Treads 6 | . 14 14 9 3 . . . . . . . . . . . . 4 9 9 9 9 9 9 8 8 8 8 8 8 7 6 7 7 7 Hover 6 | . 8 14 9 2 9 18 15 16 20 20 20 19 18 19 19 18 8 . . . . . . . . . . . . . . . . . Device 21 | . 28 28 22 8 7 12 19 20 20 20 20 19 18 19 19 19 20 20 22 23 22 21 22 22 22 21 24 25 12 23 22 24 30 29 Processor 12 | . . . 3 6 9 12 10 10 10 10 15 18 18 19 15 14 15 18 18 18 18 18 18 17 17 17 16 16 15 7 7 7 7 7 Hackware 4 | . . . . 11 17 18 15 15 15 15 15 11 5 4 12 14 6 . . . . . . . 2 4 4 4 6 . . . . . Protection 4 | . . . 5 5 3 . 3 5 5 5 4 4 4 4 4 4 3 4 3 3 4 4 4 4 4 4 4 3 1 3 3 3 7 6 Energy Cannon 3 | . . . . 6 5 6 5 5 5 5 5 4 4 4 4 4 4 4 4 4 4 4 4 4 4 4 4 4 4 5 6 4 . 2 Ballistic Gun 2 | . 21 28 14 . . . . . . . . . . . . . . . . . . . . . . . . . . . . 1 2 . Launcher 2 | . . . 1 . . . . . . . . . 4 4 4 4 4 4 4 4 4 4 4 4 4 4 4 4 . . . . . . Naked Turns . | . . . . . . . . . . . . . . . . . . . . . . . . . . . . . . . . . . . Heaviest Build 187 | 8 11 11 35 38 38 45 42 42 54 50 50 72 72 72 73 71 91 81 83 81 82 94 94 99 99 96 98 98 140 154 156 150 187 187 Greatest Support 182 | 20 17 17 17 61 61 42 42 51 51 51 51 73 73 73 73 73 182 170 170 170 170 170 170 170 170 170 170 170 170 170 170 175 175 175 Greatest Overweight (x) 5 | . . . 2 1 2 1 1 . 1 . . . . . 5 1 1 . . . . . . . . . . . 2 . 1 1 1 1 Average Overweight (x) . | . . . . . . . . . . . . . . . 1 . . . . . . . . . . . . . . . . . . . Largest Inventory Capacity 8 | 2 2 2 3 3 4 4 4 4 4 4 4 4 4 4 4 4 4 4 4 4 4 5 5 5 6 6 6 6 6 6 8 8 8 8 Average Capacity 4 | 1 2 2 2 3 3 4 4 4 4 4 4 4 4 4 4 4 4 4 4 4 4 4 5 5 5 6 6 6 6 6 7 8 8 8 Most Carried 8 | 2 2 2 3 3 4 4 4 4 4 4 4 4 4 4 4 4 4 4 4 4 4 5 5 5 6 5 6 6 6 6 8 8 8 8 Average Carried 4 | 1 1 1 2 2 3 3 3 3 3 4 3 3 4 4 4 4 3 3 3 3 4 4 5 4 5 4 5 5 3 5 7 7 7 7 Final Capacity 8 | 2 2 2 3 3 4 4 4 4 4 4 4 4 4 4 4 4 4 4 4 4 4 5 5 5 6 6 6 6 6 6 8 8 8 8 Final Carried 8 | 1 2 1 3 3 4 4 4 4 4 4 4 4 4 4 4 4 4 3 4 4 4 5 5 4 5 5 6 6 6 5 8 8 6 4 Class Distribution -------------------- 18% | Gunner 13% | Hacker-Scout 10% | Hacker-Gunner 10% | Machinist-Gunner 9% | Hacker-Mutant 7% | Scavenger-Mutant 7% | Alien-Gunner 5% | Generator-Gunner 3% | Mutant 3% | Hacker-Skirmisher 3% | Scavenger-Skirmisher 3% | Alien-Assassin Dominant Class ---------------- Scavenger-Mutant | -10/Materials Scavenger-Mutant | -10/Mines Scavenger-Mutant | -10/Subcaves Hacker-Mutant | -8/Materials Hacker-Mutant | -7/Factory Hacker-Mutant | -7/Waste Hacker-Mutant | -7/Factory Hacker-Mutant | -7/Lower Caves Hacker-Mutant | -7/Lower Caves Hacker-Mutant | -7/Data Miner Hacker-Scout | -6/Proximity Caves Hacker-Scout | -6/Factory Commander-Scout | -6/Extension Commander-Scout | -6/Cetus Hacker-Skirmisher | -6/Archives Hacker-Scout | -6/Hub_04(d) Gunner | -5/Factory Gunner | -5/Upper Caves Gunner | -5/Upper Caves Gunner | -5/Zhirov Gunner | -4/Proximity Caves Machinist-Gunner | -4/Factory Machinist-Gunner | -4/Upper Caves Machinist-Gunner | -4/Upper Caves Hacker-Gunner | -4/Warlord Hacker-Gunner | -3/Proximity Caves Hacker-Gunner | -3/Research Hacker-Gunner | -3/Armory Hacker-Scout | -3/Lab Generator-Gunner | -2/Research Generator-Gunner | -2/Quarantine Alien-Gunner | -2/Section 7 Alien-Assassin | -1/Access Alien-Gunner | -1/Command Resources | -11 -10 -10 -10 -8 -7 -7 -7 -7 -7 -7 -6 -6 -6 -6 -6 -6 -5 -5 -5 -5 -4 -4 -4 -4 -4 -3 -3 -3 -3 -2 -2 -2 -1 -1 ----------- Run | Yrd Mat Min Sub Mat Fac Was Fac Low Low Dat Pro Fac Ext Cet Arc Hub Fac Upp Upp Zhi Pro Fac Upp Upp War Pro Res Arm Lab Res Qua Sec Acc Com Matter Collected 6201 | 272 200 56 1064 100 118 20 170 20 10 . 30 289 160 115 82 91 584 115 155 60 70 175 . 50 445 60 30 224 212 198 230 736 10 50 Remotely . | . . . . . . . . . . . . . . . . . . . . . . . . . . . . . . . . . . . Salvage Created 40707 | 28 304 154 855 245 636 1883 1369 795 753 . 1171 1929 1028 595 348 527 2305 1393 879 135 1401 2129 156 567 1352 1067 345 4822 106 683 1799 7979 515 454 Parts 1881 | 3 25 13 75 12 37 23 57 46 27 . 40 123 53 11 26 43 155 50 22 3 68 126 14 25 43 38 21 202 8 34 82 326 26 24 Haulers Intercepted 11 | . . . . . 1 . 2 . . . . 5 . . . 1 1 . . . . 1 . . . . . . . . . . . . Recyclers Shooed 4 | . . . . . . . 1 . . . . 1 . . . . 2 . . . . . . . . . . . . . . . . . Parts Field Recycled . | . . . . . . . . . . . . . . . . . . . . . . . . . . . . . . . . . . . Retrieved Matter . | . . . . . . . . . . . . . . . . . . . . . . . . . . . . . . . . . . . Parts Self-Destructed 354 | . . . 32 . . . . 43 27 . 39 . . . . . . 48 23 3 70 . 14 24 . 31 . . . . . . . . Prevented . | . . . . . . . . . . . . . . . . . . . . . . . . . . . . . . . . . . . Kills | -11 -10 -10 -10 -8 -7 -7 -7 -7 -7 -7 -6 -6 -6 -6 -6 -6 -5 -5 -5 -5 -4 -4 -4 -4 -4 -3 -3 -3 -3 -2 -2 -2 -1 -1 ------- Run | Yrd Mat Min Sub Mat Fac Was Fac Low Low Dat Pro Fac Ext Cet Arc Hub Fac Upp Upp Zhi Pro Fac Upp Upp War Pro Res Arm Lab Res Qua Sec Acc Com Combat Hostiles Destroyed 686 | 1 12 6 33 4 20 5 21 20 11 . 16 37 17 8 4 11 52 28 19 . 24 36 4 8 33 15 5 82 1 14 26 98 7 8 Melee 21 | . 4 . 5 2 5 . 3 1 1 . . . . . . . . . . . . . . . . . . . . . . . . . Guns 86 | 1 8 6 16 . . . . . . . . . . . . . . . . . . . . . . . . . . 2 1 46 1 5 Cannons 389 | . . . 3 2 15 3 15 17 10 . 13 23 8 4 3 8 35 22 11 . 19 28 3 4 11 5 5 58 . 9 19 36 . . AOE 92 | . . . 9 . . . . . . . . 7 6 . . 3 11 3 4 . 3 3 . 3 18 7 . 14 . 1 . . . . Classes Destroyed 33 | 2 2 . 3 . 5 1 4 2 . . 1 5 . . . 1 . . . . . . . . 4 . . . . . 2 1 . . Worker 8 | . . . . . . . . . . . . 4 . . . 1 2 . . . . 1 . . . . . . . . . . . . Builder 5 | . . . . . . . . . . . . 2 2 . . . . . . . . 1 . . . . . . . . . . . . Tunneler 1 | 1 . . . . . . . . . . . . . . . . . . . . . . . . . . . . . . . . . . Hauler 11 | . . . . . 1 . 2 . . . . 5 . . . 1 1 . . . . 1 . . . . . . . . . . . . Recycler 12 | . . . . . . . 2 . . . . 2 3 . . 1 2 . . . . . . . . . . . . . 2 . . . Minesweeper 5 | . . . . . . . . . . . 2 . . . . . . 1 1 . 1 . . . . . . . . . . . . . Mechanic 3 | . . . . . . . . . . . . . . . . . . . . . . . . . 1 . . . . . . 2 . . Operator 16 | . . . . . . . 1 . . . . 1 . . 4 1 2 . . . . 2 . . . . . . . 1 1 3 . . Watcher 22 | . . . . . . . 1 . . . . 2 . 2 . 1 5 . . . . 1 . . . . 1 2 . 1 1 5 . . Swarmer 100 | . 4 4 7 . 7 . . 2 6 . . 9 . 2 . . 5 12 2 . 6 4 . . . 9 . 11 . 5 . 5 . . Cutter 3 | . . . . . . . . . . . . . . . . 3 . . . . . . . . . . . . . . . . . . Saboteur 11 | . . . . . . . . . . . . 1 . . . . . . . . . . . . 4 . . 2 . . . 4 . . Grunt 235 | . 8 2 2 2 4 . 13 7 3 . 10 5 10 2 . 2 22 9 14 . 11 18 . 3 16 3 . 25 . 3 14 23 1 3 Brawler 19 | . . . . . . . . . . . 1 1 . 1 . . 1 1 2 . . . . 1 2 1 . 3 . . . 4 . 1 Duelist 24 | . . . . . 1 . . 3 1 . . 1 . . . . 1 3 . . . . . . 1 . . 7 . . . 6 . . Protector 9 | . . . . . 1 . . . . . . 1 . . . . 1 . . . . . . . 3 . . 2 . . 1 . . . Researcher 6 | . . . . . . . . . . . . . . . . . . . . . . . . . . . . . . . 2 4 . . Sentry 57 | . . . 1 2 1 . 6 2 . . 1 5 3 . 4 3 6 2 1 . 2 4 1 . . 1 . 8 . 1 . 3 . . Demolisher 8 | 1 . . . . . . . . . . . . . . . . . . . . . . . . 2 . . 5 . . . . . . Specialist 13 | . . . . . . . . . . . . 3 . . . . 1 . . . . . . 2 . . . 7 . . . . . . Hunter 48 | . . . . . 3 . 1 . . . 2 4 4 . . . 7 . . . 4 4 . . . . 4 2 . 1 2 6 1 3 Programmer 66 | . . . . . 3 . . 2 . . 1 6 . . . 3 5 . . . . 5 2 1 1 . . 9 . 2 5 18 2 1 Heavy 5 | . . . . . . . . . . . . 1 . . . . 2 . . . . . . . . . . 2 . . . . . . Behemoth 15 | . . . . . . . . 1 1 . 1 . . . . . 1 1 . . 1 1 1 1 . 1 1 . . . . 2 2 . Compactor 5 | . . . . . . 5 . . . . . . . . . . . . . . . . . . . . . . . . . . . . Cetus Guard 3 | . . . . . . . . . . . . . . 3 . . . . . . . . . . . . . . . . . . . . S7 Guard 3 | . . . . . . . . . . . . . . . . . . . . . . . . . . . . . . . . 3 . . Tracker 10 | . . . . . . . . . . . . . . . . . . . . . . . . . . . . . . . 1 9 . . Combat Programmer 8 | . . . . . . . . . . . . . . . . . . . . . . . . . . . . . . . 2 6 . . Investigator 1 | . . . . . . . . . . . . . . . . . . . . . . . . . . . . . . . . 1 . . Striker 7 | . . . . . . . . . . . . . . . . . . . . . . . . . 2 . . . . 1 . 4 . . Executioner 7 | . . . . . . . . . . . . . . . . . . . . . . . . . 2 . . . . 1 . 3 1 . Alpha 7 2 | . . . . . . . . . . . . . . . . . . . . . . . . . . . . . . . . 2 . . Fortress 1 | . . . . . . . . . . . . . . . . . . . . . . . . . . . . . . . 1 . . . Artisan 3 | . . . 3 . . . . . . . . . . . . . . . . . . . . . . . . . . . . . . . Subdweller 23 | . . . 23 . . . . . . . . . . . . . . . . . . . . . . . . . . . . . . . Packrat 3 | . . . . . . . . . 3 . . . . . . . . . . . . . . . . . . . . . . . . . Thief 3 | . . . . . . . . 3 . . . . . . . . . . . . . . . . . . . . . . . . . . Thug 2 | . . . . . . . . . . . . . 1 . . . . . . . . . . . 1 . . . . . . . . . Savage 2 | . . . . . . . 1 . . . . . . . . . . . . . . . . . 1 . . . . . . . . . Butcher 2 | . . . . . . . . . . . . . . . . . . . . . . . . . 2 . . . . . . . . . Mutant 1 | . . . . . . . . . . . . . . . . . . . . . . . . . 1 . . . . . . . . . Best Kill Streak 20 | 1 5 3 4 2 5 5 5 8 5 . 4 13 7 5 2 4 10 13 6 . 11 6 2 4 12 6 2 20 1 7 6 16 4 5 Combat Bots Only 20 | 1 5 3 4 2 5 5 4 8 5 . 4 12 6 5 1 3 8 13 6 . 11 6 2 4 12 6 2 20 1 6 5 15 4 5 Max Kills in Single Turn 5 | 1 1 2 3 1 1 1 1 1 1 . 1 3 3 1 1 3 5 3 2 . 2 3 1 2 4 5 1 4 1 1 1 2 2 2 Gunslinging 1 | . . 1 . . . . . . . . . . . . . . . . . . . . . . . . . . . . . . . . Exploded 5 | . . . 3 . . . . . . . . 3 2 . . 3 5 3 2 . 2 3 . 2 4 5 . 4 . 1 . . . . Melee 1 | . 1 . 1 1 1 . 1 1 1 . . . . . . . . . . . . . . . . . . . . . . . . . Uniques/NPCs Destroyed 1 | . . . . . . . . . . . . . . . . . . . . . . . . . . . . . 1 . . . . . A5 (-3/Lab) Combat | -11 -10 -10 -10 -8 -7 -7 -7 -7 -7 -7 -6 -6 -6 -6 -6 -6 -5 -5 -5 -5 -4 -4 -4 -4 -4 -3 -3 -3 -3 -2 -2 -2 -1 -1 -------- Run | Yrd Mat Min Sub Mat Fac Was Fac Low Low Dat Pro Fac Ext Cet Arc Hub Fac Upp Upp Zhi Pro Fac Upp Upp War Pro Res Arm Lab Res Qua Sec Acc Com Hostile Shots Fired 3705 | 1 132 8 166 18 110 . 96 36 53 . 70 207 131 71 25 62 187 41 18 . 90 86 11 7 81 20 40 233 21 36 124 892 204 428 Missed 1101 | . 35 5 51 4 35 . 41 13 21 . 20 69 55 25 6 25 41 11 6 . 26 32 4 3 29 4 17 71 7 11 37 213 65 119 Damage Taken 32703 | 47 954 28 2325 231 1075 75 688 321 503 . 791 2018 849 867 330 612 3363 485 206 . 992 841 130 59 1422 348 183 3073 308 353 1057 4581 1520 2068 Core 23139 | 47 751 24 1439 164 839 61 531 211 370 . 491 1335 534 619 234 434 2291 382 159 . 764 610 83 39 1122 272 117 2214 250 272 752 3196 1042 1490 Absorbed by Shields 12345 | . . . . . 155 28 262 120 147 . 108 248 328 312 118 49 266 15 74 . 267 311 48 21 329 126 67 1078 52 338 842 3912 789 1935 Reduced by Siege Mode 49 | . . . . . . . . . . . . . . . . . . . . . . 10 2 . 2 . . 6 . . 7 11 . 11 Redirected to Core 20092 | . 617 15 1180 130 606 52 357 207 338 . 459 1173 443 528 178 321 1996 296 132 . 623 579 83 32 880 238 117 2027 213 231 706 3041 971 1323 Redirected to Shielding 126 | . . . . . . . 42 48 36 . . . . . . . . . . . . . . . . . . . . . . . . . Ignored by Resistances 11096 | . . . . 21 4 . . . . . . . . . . . . . . . . . . . . . . . . . 332 6718 1003 3018 Regen/Repaired (Parts) 1573 | . . . . . . 117 192 . . . . 198 . . . . . . . . . . . . . . . 281 30 57 82 346 104 166 Core Remaining (%) 62 | 92 . . 10 1 . . . . . . 100 . . . . 86 . . . . 100 . . . . 97 . . 57 . . 22 . . Volleys Fired 2168 | 2 29 7 116 15 46 29 86 54 27 . 56 124 44 40 33 32 169 54 36 1 80 109 13 15 69 29 24 193 7 46 96 410 36 41 Largest 3 | 2 2 2 2 1 1 1 1 1 1 . 1 1 1 1 1 1 1 1 1 1 1 1 1 1 1 1 1 1 1 1 1 3 1 1 Hottest 900 | 40 40 40 73 40 40 40 40 120 40 . 40 80 80 80 40 80 120 80 80 40 80 80 40 80 80 80 40 80 120 100 100 900 900 900 Shots Fired 2308 | 4 50 14 203 15 46 29 86 54 27 . 56 124 43 40 33 32 170 54 36 1 80 109 13 15 69 29 24 193 7 46 96 433 36 41 Gun 577 | 4 50 14 164 . . . . . . . . . . . . . . . . . . . . . . . . . . 19 14 260 29 23 Cannon 1665 | . . . 29 15 46 29 86 54 27 . 56 122 37 37 33 28 160 51 31 1 78 108 13 13 58 27 24 188 7 27 82 173 7 18 Launcher 66 | . . . 10 . . . . . . . . 2 6 3 . 4 10 3 5 . 2 1 . 2 11 2 . 5 . . . . . . Special . | . . . . . . . . . . . . . . . . . . . . . . . . . . . . . . . . . . . Kinetic 312 | 4 50 14 200 . . . . . . . . . . . . . . . . . . . . . . . . . . . . 44 . . Thermal 1652 | . . . 3 15 46 29 86 54 27 . 56 122 37 37 33 28 160 51 31 1 78 108 13 13 58 27 24 188 7 27 82 186 7 18 Explosive 56 | . . . . . . . . . . . . 2 6 3 . 4 10 3 5 . 2 1 . 2 11 2 . 5 . . . . . . Electromagnetic 35 | . . . . . . . . . . . . . . . . . . . . . . . . . . . . . . 19 14 2 . . Slashing 253 | . . . . . . . . . . . . . . . . . . . . . . . . . . . . . . . . 201 29 23 Robot Hit Streak 45 | 2 14 5 13 5 12 9 10 11 8 . 16 18 20 7 6 8 44 10 7 2 21 14 4 6 23 14 7 36 1 11 18 45 15 6 Robot Miss Streak 4 | 1 4 1 3 2 3 2 3 3 3 . 3 3 2 2 2 2 2 1 2 . 2 2 1 1 2 2 1 4 1 2 1 3 1 4 Penetration Max 9 | . . . . . . . . . . . . . . . . . . . . . . . . . . . . . . . . 4 3 9 Secondary Targets 3 | . . 1 . . . . . . . . . . . . . . . . . . . . . . . . . . . . . 2 . . Max Gunslinging Chain 1 | . . 1 . . . . . . . . . . . . . . . . . . . . . . . . . . . . . 1 . . Capacitor 1192 | . . . . . . . . . . . . . . . . . 48 51 31 1 78 108 13 13 58 27 24 188 . 46 96 358 29 23 Shots Hit Robots 1643 | 2 46 8 151 10 44 22 59 40 28 . 41 89 31 28 21 17 128 41 21 1 61 74 9 10 43 24 12 152 1 28 60 302 22 17 Core Hits 1114 | 2 16 6 57 4 22 7 25 17 12 . 20 50 32 18 10 16 88 38 27 1 25 44 6 14 114 19 7 114 . 21 38 229 7 8 Critical Kills 99 | . . . 1 . 1 2 3 2 1 . 4 9 3 4 2 . 8 3 4 . 3 5 1 1 4 3 . 10 1 2 7 15 . . Critical Parts Destroyed 2 | . . . 1 . . . . . . . . . . . . . . . . . . . . . . . . . . . . 1 . . Critical Strikes 118 | . . . 2 1 3 2 3 2 3 . 4 9 3 4 2 . 8 3 4 . 3 5 1 1 4 3 . 10 1 2 7 27 . 1 Meltdown 98 | . . . . . 1 2 3 2 1 . 4 9 3 4 2 . 8 3 4 . 3 5 1 1 4 3 . 10 1 2 7 15 . . Destroy 3 | . . . 2 . . . . . . . . . . . . . . . . . . . . . . . . . . . . 1 . . Sever 17 | . . . . 1 2 . . . 2 . . . . . . . . . . . . . . . . . . . . . . 11 . 1 Melee Attacks 100 | . 18 . 28 8 17 . 8 1 9 . . . . . . . . . . . . . . . . . . . . . 1 1 4 5 Kinetic 1 | . . . . . . . . . . . . . . . . . . . . . . . . . . . . . . . 1 . . . Impact . | . . . . . . . . . . . . . . . . . . . . . . . . . . . . . . . . . . . Slashing 89 | . 18 . 28 8 17 . 8 1 9 . . . . . . . . . . . . . . . . . . . . . . . . . Piercing 10 | . . . . . . . . . . . . . . . . . . . . . . . . . . . . . . . . 1 4 5 Sneak Attacks 4 | . . . 1 . . . . . 3 . . . . . . . . . . . . . . . . . . . . . . . . . Combat Hostiles . | . . . . . . . . . . . . . . . . . . . . . . . . . . . . . . . . . . . Follow-up Attacks . | . . . . . . . . . . . . . . . . . . . . . . . . . . . . . . . . . . . Damage Inflicted 115127 | 26 755 112 3541 409 2150 1105 3082 2304 1388 . 2074 6022 3026 1771 1132 1351 10548 3700 3124 93 5099 5337 550 890 7825 1831 883 14405 39 2046 5082 21832 822 773 Guns 16154 | 26 476 112 1809 . . . . . . . . . . . . . . . . . . . . . . . . . . 383 275 11478 822 773 Cannons 79296 | . . . 328 247 1750 1105 2767 2270 1030 . 2074 4681 1720 1368 1132 888 8011 3127 1810 93 4718 5088 550 524 3272 1177 883 11950 39 1533 4807 10354 . . Explosions 17971 | . . . 1147 . . . 99 . . . . 1341 1306 403 . 463 2537 573 1314 . 381 249 . 366 4553 654 . 2455 . 130 . . . . Melee 1706 | . 279 . 257 162 400 . 216 34 358 . . . . . . . . . . . . . . . . . . . . . . . . . Ramming . | . . . . . . . . . . . . . . . . . . . . . . . . . . . . . . . . . . . Kinetic 5340 | 26 476 112 3284 . . . . . . . . . . . . . . . . . . . . . . . . . . . . 1442 . . Thermal 80943 | . . . . 247 1750 1105 2866 2270 1030 . 2074 5365 1930 1368 1132 888 8011 3127 1810 93 4718 5088 550 524 3272 1177 883 12802 39 1663 4807 10354 . . Explosive 14619 | . . . . . . . . . . . . 657 1096 403 . 233 2537 573 1314 . 381 249 . 366 4553 654 . 1603 . . . . . . Electromagnetic 919 | . . . . . . . . . . . . . . . . 230 . . . . . . . . . . . . . 383 275 31 . . Impact . | . . . . . . . . . . . . . . . . . . . . . . . . . . . . . . . . . . . Slashing 13306 | . 279 . 257 162 400 . 216 34 358 . . . . . . . . . . . . . . . . . . . . . . 10005 822 773 Piercing . | . . . . . . . . . . . . . . . . . . . . . . . . . . . . . . . . . . . Highest Corruption 8 | . . . . . 1 . . . . . 1 4 5 5 5 3 3 . . . . 1 . . . . . 8 5 1 . 4 . . Average Corruption 2 | . . . . . 1 . . . . . 1 3 4 5 3 2 1 . . . . 1 . . . . . 2 3 1 . 3 . . Corruption Purged 29 | . . . . . 1 . . . . . . . . . 5 . 3 . . . . 1 . . . . . 11 3 1 . 4 . . Corruption Blocked 25 | . . . . . . . . . . . . . . . . . . . . . . . . . 25 . . . . . . . . . Effects 73 | . . . . . 3 . . . . . 2 8 11 6 5 1 6 . . . . 11 . . . . . 7 2 . . 11 . . Message Errors 18 | . . . . . . . . . . . 1 1 4 1 1 1 1 . . . . 1 . . . . . 2 . . . 5 . . Matter Fused 20 | . . . . . 1 . . . . . . 1 3 2 2 . 1 . . . . 4 . . . . . 4 . . . 2 . . Heat Flow Errors 6 | . . . . . 1 . . . . . . 1 . 1 1 . 1 . . . . 1 . . . . . . . . . . . . Energy Discharges 7 | . . . . . . . . . . . 1 1 . 2 . . . . . . . 2 . . . . . . 1 . . . . . Parts Fused 1 | . . . . . . . . . . . . 1 . . . . . . . . . . . . . . . . . . . . . . Data Loss (minor) 11 | . . . . . 1 . . . . . . 1 1 . 1 . . . . . . 2 . . . . . 1 1 . . 3 . . Data Loss (major) 4 | . . . . . . . . . . . . 1 . . . . 2 . . . . 1 . . . . . . . . . . . . Misfires 2 | . . . . . . . . . . . . . 1 . . . 1 . . . . . . . . . . . . . . . . . Alerts 1 | . . . . . . . . . . . . 1 . . . . . . . . . . . . . . . . . . . . . . Weapon Failures 3 | . . . . . . . . . . . . . 2 . . . . . . . . . . . . . . . . . . 1 . . Overload Shots 8 | . . . . . . . . 3 . . . . . . . . 4 . . . . . . . . . . . 1 . . . . . Effects 2 | . . . . . . . . . . . . . . . . . 2 . . . . . . . . . . . . . . . . . Energy Bleed 1 | . . . . . . . . . . . . . . . . . 1 . . . . . . . . . . . . . . . . . Heat Surge 1 | . . . . . . . . . . . . . . . . . 1 . . . . . . . . . . . . . . . . . Overflow Damage 4817 | . . . . . 126 . 127 169 263 . 87 419 95 48 17 75 372 138 260 . 413 205 10 . 304 104 45 705 . 203 184 448 . . Projectiles 4193 | . . . . . 120 . 100 169 99 . 87 216 43 47 17 75 318 138 205 . 413 200 10 . 261 96 45 699 . 203 184 448 . . Explosions 427 | . . . . . . . . . . . . 203 52 1 . . 54 . 55 . . 5 . . 43 8 . 6 . . . . . . Melee 197 | . . . . . 6 . 27 . 164 . . . . . . . . . . . . . . . . . . . . . . . . . Knockbacks 5 | . . . 5 . . . . . . . . . . . . . . . . . . . . . . . . . . . . . . . Impact . | . . . . . . . . . . . . . . . . . . . . . . . . . . . . . . . . . . . Kinetic 5 | . . . 5 . . . . . . . . . . . . . . . . . . . . . . . . . . . . . . . Secondary . | . . . . . . . . . . . . . . . . . . . . . . . . . . . . . . . . . . . Self-Inflicted Damage 872 | . . . 51 . . . 178 . . . . 176 . . . 255 81 . . . . . . . . 53 . . . 78 . . . . Shots 16 | . . . 4 . . . 2 . . . . 3 . . . 3 2 . . . . . . . . 1 . . . 1 . . . . Rammed . | . . . . . . . . . . . . . . . . . . . . . . . . . . . . . . . . . . . Targets Rammed . | . . . . . . . . . . . . . . . . . . . . . . . . . . . . . . . . . . . Kicked . | . . . . . . . . . . . . . . . . . . . . . . . . . . . . . . . . . . . Crushed . | . . . . . . . . . . . . . . . . . . . . . . . . . . . . . . . . . . . Highest Temperature 305 | . . . . 118 273 231 136 271 46 . 40 210 270 192 117 72 305 . . . . 105 . . . . . . 25 . . 65 52 52 Average Temperature 61 | . . . . 40 84 117 42 43 19 . 17 60 89 65 26 25 74 . . . . 105 . . . . . . 25 . . 45 28 36 Received Heat Transfer 4045 | . 351 . 417 108 286 . 197 72 51 . 173 201 147 42 54 54 231 60 54 . 98 113 6 6 118 27 . 255 . 8 118 474 60 264 Effects 5 | . . . . . 2 . . . . . . 1 . . . . 2 . . . . . . . . . . . . . . . . . Energy Bleed 1 | . . . . . . . . . . . . 1 . . . . . . . . . . . . . . . . . . . . . . Interference 3 | . . . . . 2 . . . . . . . . . . . 1 . . . . . . . . . . . . . . . . . Short Circuit 1 | . . . . . . . . . . . . . . . . . 1 . . . . . . . . . . . . . . . . . Siege Activations 13 | . . . . . . . . . . . . . . . . . . . . . . 2 1 . 1 1 1 1 . . 1 3 1 1 Total Turns 86 | . . . . . . . . . . . . . . . . . . . . . . 17 6 . 8 3 4 9 . . 11 17 3 8 Longest Duration 11 | . . . . . . . . . . . . . . . . . . . . . . 11 6 . 8 3 4 9 . . 11 8 3 8 Robots Corrupted . | . . . . . . . . . . . . . . . . . . . . . . . . . . . . . . . . . . . Combat Hostiles . | . . . . . . . . . . . . . . . . . . . . . . . . . . . . . . . . . . . Parts Fried 3 | . . . . . . . . . . . . . . . . 1 . . . . . . . . . . . . . 1 1 . . . Impact Corruptions . | . . . . . . . . . . . . . . . . . . . . . . . . . . . . . . . . . . . Robots Melted 98 | . . . . . 1 2 3 2 1 . 4 9 3 4 2 . 8 3 4 . 3 5 1 1 4 3 . 10 1 2 7 15 . . Combat Hostiles 89 | . . . . . . 2 3 2 1 . 4 7 3 4 1 . 6 3 4 . 2 5 1 1 4 3 . 10 1 2 5 15 . . Parts Melted 153 | . . . 2 . 1 3 2 3 . . 7 15 7 3 3 . 11 4 4 . 4 7 4 2 1 4 1 13 6 8 17 21 . . Heat Transferred 4234 | . . . . . . . 50 . . . . 425 50 . . . . . . . . . . . . . . 475 . 445 756 2033 . . Parts Sabotaged . | . . . . . . . . . . . . . . . . . . . . . . . . . . . . . . . . . . . Parts Stolen . | . . . . . . . . . . . . . . . . . . . . . . . . . . . . . . . . . . . Parts Stripped 18 | . . . . . . . . . . . . . . . . . . . . . . . . . . . . . . . 18 . . . Power Chain Reactions 1 | . . . . . . . . . . . . . . . . . . . . . . . . . . . . . . 1 . . . . Alert | -11 -10 -10 -10 -8 -7 -7 -7 -7 -7 -7 -6 -6 -6 -6 -6 -6 -5 -5 -5 -5 -4 -4 -4 -4 -4 -3 -3 -3 -3 -2 -2 -2 -1 -1 ------- Run | Yrd Mat Min Sub Mat Fac Was Fac Low Low Dat Pro Fac Ext Cet Arc Hub Fac Upp Upp Zhi Pro Fac Upp Upp War Pro Res Arm Lab Res Qua Sec Acc Com Peak Influence 4158 | 25 319 206 . 224 413 197 1787 . . . . 898 885 783 404 477 1278 . . . . 529 . . . . 278 1785 . 465 592 3768 3406 4158 Initial 2260 | . 16 54 . . 4 144 137 . . . . 113 439 388 313 . 233 . . . . 91 . . . . 25 70 . . 261 270 2260 2179 Average 601 | . 201 145 . 74 194 176 1287 . . . . 277 688 645 140 171 654 . . . . 166 . . . . 182 689 . 212 341 1309 2540 2632 Maximum Alert Level 5 | . 1 1 . 1 2 . 5 . . . . 3 3 3 2 2 4 . . . . 2 . . . . 1 5 . 2 2 5 5 5 Low Security (%) 39 | 100 34 62 . 96 56 100 9 . . . . 66 . . 58 65 8 . . . . 71 . . . . 60 16 . 61 19 . . . Level 1 21 | . 65 37 . 3 37 . 3 . . . . 11 . 6 40 25 27 . . . . 22 . . . . 39 27 . 23 47 8 . . Level 2 12 | . . . . . 6 . 8 . . . . 2 66 40 . 9 20 . . . . 5 . . . . . 11 . 15 32 32 . . Level 3 10 | . . . . . . . 4 . . . . 18 33 53 . . 24 . . . . . . . . . . 27 . . . 26 . . Level 4 4 | . . . . . . . 28 . . . . . . . . . 18 . . . . . . . . . . 5 . . . 6 . . Level 5 8 | . . . . . . . 28 . . . . . . . . . . . . . . . . . . . . 11 . . . 4 77 100 High Security 3 | . . . . . . . 16 . . . . . . . . . . . . . . . . . . . . . . . . 21 22 . Max Security . | . . . . . . . . . . . . . . . . . . . . . . . . . . . . . . . . . . . Squads Dispatched 152 | . 3 . . 1 8 . 12 . . . . 14 1 . . 4 10 . . . . 7 . . . . 4 15 . 2 8 44 10 9 Investigation 31 | . 2 . . . 3 . 4 . . . . 6 1 . . . 3 . . . . 3 . . . . 2 3 . 1 . . . 3 Extermination 21 | . . . . . 3 . . . . . . 2 . . . 1 2 . . . . 3 . . . . . 2 . . 2 4 1 1 Reinforcement 25 | . 1 . . 1 . . 3 . . . . 3 . . . 3 2 . . . . 1 . . . . 1 5 . 1 1 1 2 . Assault 54 | . . . . . 1 . 5 . . . . . . . . . 3 . . . . . . . . . 1 5 . . 1 27 6 5 Garrison 5 | . . . . . 1 . . . . . . 3 . . . . . . . . . . . . . . . . . . . . 1 . Intercept 16 | . . . . . . . . . . . . . . . . . . . . . . . . . . . . . . . 4 12 . . Searches Triggered . | . . . . . . . . . . . . . . . . . . . . . . . . . . . . . . . . . . . Data Miner Redirects 6 | . . . . . . . . . . . . . . . . . . . . . . . . . . . . . . . . . 1 5 Construction Impeded 2 | . . . . . . . . . . . . 1 . . . . . . . . . . . . . . . . . . . . 1 . Haulers Reinforced 5 | . . . . . . . 2 . . . . 1 . . . . 1 . . . . 1 . . . . . . . . . . . . Active Scanning Responses . | . . . . . . . . . . . . . . . . . . . . . . . . . . . . . . . . . . . Cargo Convoy Interrupts 2 | . . . . . . . . . . . . 1 . . . . 1 . . . . . . . . . . . . . . . . . Stealth | -11 -10 -10 -10 -8 -7 -7 -7 -7 -7 -7 -6 -6 -6 -6 -6 -6 -5 -5 -5 -5 -4 -4 -4 -4 -4 -3 -3 -3 -3 -2 -2 -2 -1 -1 --------- Run | Yrd Mat Min Sub Mat Fac Was Fac Low Low Dat Pro Fac Ext Cet Arc Hub Fac Upp Upp Zhi Pro Fac Upp Upp War Pro Res Arm Lab Res Qua Sec Acc Com Distress Signals 49 | . 1 . . . . . 1 . . . . 4 . 1 . 1 2 . . . . 1 . . 1 . . 3 . 6 1 4 3 20 Communications Jammed . | . . . . . . . . . . . . . . . . . . . . . . . . . . . . . . . . . . . Distress Signals . | . . . . . . . . . . . . . . . . . . . . . . . . . . . . . . . . . . . Times Spotted 1082 | 1 24 8 39 7 21 6 42 22 12 . 15 52 18 17 8 20 73 31 20 . 22 37 4 5 86 9 7 86 1 23 32 232 39 63 Peak Tracking Total 43 | . 6 5 6 2 5 3 6 7 5 . 4 11 5 5 1 5 12 10 7 . 11 5 2 3 20 7 2 12 1 5 5 43 9 20 Tactical Retreats 22 | . . 1 1 . 2 . . 1 1 . . 1 . . . . 4 4 . . . . . . . . . . . 1 . 4 1 1 Traps | -11 -10 -10 -10 -8 -7 -7 -7 -7 -7 -7 -6 -6 -6 -6 -6 -6 -5 -5 -5 -5 -4 -4 -4 -4 -4 -3 -3 -3 -3 -2 -2 -2 -1 -1 ------- Run | Yrd Mat Min Sub Mat Fac Was Fac Low Low Dat Pro Fac Ext Cet Arc Hub Fac Upp Upp Zhi Pro Fac Upp Upp War Pro Res Arm Lab Res Qua Sec Acc Com Traps Triggered 14 | . . . 3 . 1 . . . . . . 1 . . . . 4 . . . . 1 . . . . . 2 . . . . 1 1 Indirectly . | . . . . . . . . . . . . . . . . . . . . . . . . . . . . . . . . . . . Trap Hack Attempts . | . . . . . . . . . . . . . . . . . . . . . . . . . . . . . . . . . . . Triggered . | . . . . . . . . . . . . . . . . . . . . . . . . . . . . . . . . . . . Disarmed 10 | . . . . . . . . . . . . . . . . . 10 . . . . . . . . . . . . . . . . . Reprogrammed 6 | . . . . . . . . . . . . . . . . . 6 . . . . . . . . . . . . . . . . . Reused 2 | . . . . . . . . . . . . 1 . . . . 1 . . . . . . . . . . . . . . . . . Traps Extracted . | . . . . . . . . . . . . . . . . . . . . . . . . . . . . . . . . . . . Installed 6 | . . . 2 . . . . . . . . 2 . . . 1 1 . . . . . . . . . . . . . . . . . Triggered 18 | . . . . . . . . . . . 1 1 . . . . 1 . . . 2 . . . 13 . . . . . . . . . Most Traps Carried 6 | . . . . . . . . . . . 4 4 2 2 2 2 1 . 6 6 6 6 . . . . . . . . . . . . Machines | -11 -10 -10 -10 -8 -7 -7 -7 -7 -7 -7 -6 -6 -6 -6 -6 -6 -5 -5 -5 -5 -4 -4 -4 -4 -4 -3 -3 -3 -3 -2 -2 -2 -1 -1 ---------- Run | Yrd Mat Min Sub Mat Fac Was Fac Low Low Dat Pro Fac Ext Cet Arc Hub Fac Upp Upp Zhi Pro Fac Upp Upp War Pro Res Arm Lab Res Qua Sec Acc Com Machines Disabled 144 | . 2 . 1 3 3 . 13 . 1 . . 13 4 2 2 11 . . 1 . 3 2 . 1 1 . 1 4 2 2 4 48 9 11 Max in Single Turn 27 | . 1 . 1 1 1 . 4 . 1 . . 7 2 1 1 7 . . 1 . 1 1 . 1 1 . 1 1 1 1 1 27 4 2 Garrison Access 19 | . . . . . 1 . 2 . . . . 2 . . . 1 4 . . . . 2 . . . . 1 . . 2 1 1 2 . Phase Generator 1 | . . . . . . . . . . . . . . . . . . . . . . . . . . . . . . . . . . 1 Network Hub 2 | . . . . . . . . . . . . . . . . 2 . . . . . . . . . . . . . . . . . . Energy Cycler 7 | . . . . . . . . . . . . . 5 . . . . . . . . . . . . . . 1 . . . . 1 . Machines Repaired . | . . . . . . . . . . . . . . . . . . . . . . . . . . . . . . . . . . . Machines Dismantled . | . . . . . . . . . . . . . . . . . . . . . . . . . . . . . . . . . . . Machines Sabotaged . | . . . . . . . . . . . . . . . . . . . . . . . . . . . . . . . . . . . Overloaded Fab Kills . | . . . . . . . . . . . . . . . . . . . . . . . . . . . . . . . . . . . Hacking | -11 -10 -10 -10 -8 -7 -7 -7 -7 -7 -7 -6 -6 -6 -6 -6 -6 -5 -5 -5 -5 -4 -4 -4 -4 -4 -3 -3 -3 -3 -2 -2 -2 -1 -1 --------- Run | Yrd Mat Min Sub Mat Fac Was Fac Low Low Dat Pro Fac Ext Cet Arc Hub Fac Upp Upp Zhi Pro Fac Upp Upp War Pro Res Arm Lab Res Qua Sec Acc Com Machines Accessed 162 | . 2 . 2 5 7 . 12 . 1 4 1 16 9 1 1 9 24 1 1 4 1 16 1 . 2 . 6 5 2 3 9 10 3 4 Terminals 88 | . 2 . . 4 4 . 2 . . . 1 7 9 1 . 7 14 . 1 . 1 8 . . . . 2 2 . . 8 10 1 4 Fabricators 14 | . . . . . 2 . 1 . . . . 3 . . . . 1 . . . . 3 . . . . 2 2 . . . . . . Repair Stations 8 | . . . . . . . 3 . . . . 2 . . . . 1 . . . . . . . . . . 1 . 1 . . . . Recycling Units 5 | . . . . 1 . . 1 . . . . . . . . . 1 . . . . 1 . . . . 1 . . . . . . . Scanalyzers 10 | . . . . . . . 3 . . . . 2 . . . . 3 . . . . 2 . . . . . . . . . . . . Garrison Access 19 | . . . . . 1 . 2 . . . . 2 . . . 2 4 . . . . 2 . . . . 1 . . 2 1 . 2 . Total Hacks 706 | . 8 . 2 37 20 . 48 . 1 31 7 55 19 2 1 38 130 1 6 17 4 94 1 . 2 . 37 25 24 13 26 35 10 12 Successful 387 | . 5 . 2 21 8 . 32 . 1 31 7 35 6 1 1 26 67 1 6 17 4 43 1 . 2 . 10 12 24 4 7 9 4 . Failed 315 | . 2 . . 15 12 . 16 . . . . 20 13 1 . 11 62 . . . . 51 . . . . 27 13 . 9 19 26 6 12 Catastrophic 64 | . . . . 2 3 . . . . . . . 2 . . 1 12 . . . . 11 . . . . 9 2 . 1 7 7 3 4 Database Lockouts 4 | . 1 . . 1 . . . . . . . . . . . 1 1 . . . . . . . . . . . . . . . . . Manual 199 | . 5 . . 24 2 . 12 . . . . 19 7 . . 20 52 . . . . 26 . 1 1 . 2 10 . . 5 8 . 5 Terminals 428 | . 8 . . 33 12 . 14 . . . 7 26 19 2 . 29 103 . 6 . 4 65 . . . . 13 15 . . 20 35 5 12 Fabricators 51 | . . . . . 4 . 3 . . . . 7 . . . . 3 . . . . 13 . . . . 15 6 . . . . . . Repair Stations 28 | . . . . . . . 8 . . . . 5 . . . . 3 . . . . . . . . . . 4 . 8 . . . . Recycling Units 18 | . . . . 4 . . 2 . . . . . . . . . 5 . . . . 3 . . . . 4 . . . . . . . Scanalyzers 45 | . . . . . . . 16 . . . . 11 . . . . 9 . . . . 9 . . . . . . . . . . . . Garrison Access 56 | . . . . . 4 . 5 . . . . 6 . . . 9 7 . . . . 4 . . . . 5 . . 5 6 . 5 . Terminal Hacks 242 | . 4 . 2 14 4 . 8 . 1 31 7 11 6 1 1 14 36 1 6 17 4 22 1 . 2 . 5 4 24 . 6 8 2 . Record 61 | . . . 1 . . . . . 1 11 7 . . . 1 . . . 6 5 4 . . . 1 . . . 23 . 1 . . . Part Schematic 37 | . . . . 1 1 . 1 . . 13 . 3 . . . 1 9 . . 4 . 3 . . . . . . . . 1 . . . Robot Schematic 7 | . . . . 1 . . . . . 4 . . . . . . 2 . . . . . . . . . . . . . . . . . Robot Analysis 12 | . 1 . . 2 1 . . . . . . . . . . 2 1 . . 4 . . . . . . 1 . . . . . . . Prototype ID Bank 24 | . 2 . . . 1 . 3 . . 3 . . 1 . . 3 4 . . 4 . 2 . . . . 1 . . . . . . . Open Door 11 | . . . . . . . . . . . . 1 1 1 . . . 1 . . . . 1 . 1 . . . . . 1 4 . . Open DSF 1 | . . . . . . . . . . . . . . . . . . . . . . 1 . . . . . . . . . . . . Level Access Points 4 | . . . . 1 . . . . . . . . . . . 1 1 . . . . 1 . . . . . . . . . . . . Branch Access Points 6 | . . . . 1 1 . 1 . . . . . . . . . 1 . . . . 1 . . . . 1 . . . . . . . Emergency Access Points 2 | . . . . . . . . . . . . . . . . . . . . . . . . . . . . 1 . . 1 . . . Machine Index 2 | . . . . . . . . . . . . . . . . 1 1 . . . . . . . . . . . . . . . . . Terminal Index 5 | . . . . 1 . . . . . . . . . . . . . . . . . 1 . . . . 1 1 . . . 1 . . Fabricator Index 2 | . . . . . . . . . . . . . . . . . . . . . . 1 . . . . . 1 . . . . . . Recycling Unit Index 1 | . . . . . . . . . . . . . . . . . . . . . . 1 . . . . . . . . . . . . Scanalyzer Index 2 | . . . . . . . . . . . . . . . . . 1 . . . . 1 . . . . . . . . . . . . Garrison Index 1 | . . . . . . . . . . . . . . . . . . . . . . 1 . . . . . . . . . . . . Alert Level 7 | . . . . . . . . . . . . . 1 . . 2 1 . . . . 2 . . . . . 1 . . . . . . Unreport Threat 21 | . . . . 3 . . 3 . . . . 2 2 . . 1 1 . . . . 3 . . . . 1 . . . 2 1 2 . Locate Traps 11 | . . . . 2 . . . . . . . 2 1 . . 1 3 . . . . 1 . . . . . . . . . 1 . . Disarm Traps 2 | . . . . . . . . . . . . . . . . . 2 . . . . . . . . . . . . . . . . . Reprogram Traps 1 | . . . . . . . . . . . . . . . . . 1 . . . . . . . . . . . . . . . . . Dispatch Records 1 | . . . . . . . . . . . . . . . . . 1 . . . . . . . . . . . . . . . . . Recall Investigation 2 | . . . . . . . . . . . . 1 . . . . 1 . . . . . . . . . . . . . . . . . Recall Reinforcements 1 | . . . . . . . . . . . . . . . . . 1 . . . . . . . . . . . . . . . . . Hauler Manifests 5 | . . . . 1 . . . . . . . 1 . . . 1 1 . . . . 1 . . . . . . . . . . . . Registered Components 2 | . . . . 1 . . . . . . . . . . . . 1 . . . . . . . . . . . . . . . . . Registered Prototypes 1 | . . . . . . . . . . . . . . . . . . . . . . 1 . . . . . . . . . . . . Zone Layout 8 | . 1 . . . . . . . . . . 1 . . . 1 3 . . . . 1 . . . . . . . . . 1 . . Derelict Proto ID Bank 1 | . . . 1 . . . . . . . . . . . . . . . . . . . . . . . . . . . . . . . Release Object 1 | . . . . . . . . . . . . . . . . . . . . . . . . . . . . . 1 . . . . . Fabricator Hacks 25 | . . . . . 4 . 2 . . . . 6 . . . . 2 . . . . 6 . . . . 3 2 . . . . . . Load Schematic 12 | . . . . . 1 . 1 . . . . 3 . . . . 1 . . . . 3 . . . . 2 1 . . . . . . Build 13 | . . . . . 3 . 1 . . . . 3 . . . . 1 . . . . 3 . . . . 1 1 . . . . . . Repair Station Hacks 17 | . . . . . . . 6 . . . . 4 . . . . 2 . . . . . . . . . . 2 . 3 . . . . Scan Component 9 | . . . . . . . 3 . . . . 2 . . . . 1 . . . . . . . . . . 1 . 2 . . . . Repair 8 | . . . . . . . 3 . . . . 2 . . . . 1 . . . . . . . . . . 1 . 1 . . . . Recycling Unit Hacks 7 | . . . . 2 . . 1 . . . . . . . . . 2 . . . . 1 . . . . 1 . . . . . . . Report Inventory 4 | . . . . 1 . . 1 . . . . . . . . . 1 . . . . . . . . . 1 . . . . . . . Retrieve Components 3 | . . . . 1 . . . . . . . . . . . . 1 . . . . 1 . . . . . . . . . . . . Scanalyzer 29 | . . . . . . . 12 . . . . 5 . . . . 6 . . . . 6 . . . . . . . . . . . . Insert Component 18 | . . . . . . . 7 . . . . 4 . . . . 3 . . . . 4 . . . . . . . . . . . . Analyze 11 | . . . . . . . 5 . . . . 1 . . . . 3 . . . . 2 . . . . . . . . . . . . Garrison Access Hacks 16 | . . . . . . . 2 . . . . 2 . . . 2 4 . . . . 2 . . . . . . . 1 1 . 2 . Unlock Access 1 | . . . . . . . . . . . . . . . . 1 . . . . . . . . . . . . . . . . . . Seal Access 15 | . . . . . . . 2 . . . . 2 . . . 1 4 . . . . 2 . . . . . . . 1 1 . 2 . Unauthorized Hacks 51 | . 1 . . 5 . . 1 . . . . 7 . . . 10 15 . . . . 6 . . . . 1 4 . . . 1 . . Terminals 40 | . 1 . . 4 . . . . . . . 7 . . . 5 12 . . . . 6 . . . . . 4 . . . 1 . . Track 16 | . . . . 2 . . . . . . . 2 . . . 2 6 . . . . 2 . . . . . 1 . . . 1 . . Assimilate 3 | . . . . . . . . . . . . 2 . . . . . . . . . 1 . . . . . . . . . . . . Botnet 11 | . . . . 1 . . . . . . . 2 . . . 2 3 . . . . 2 . . . . . 1 . . . . . . Detonate 1 | . . . . . . . . . . . . . . . . . 1 . . . . . . . . . . . . . . . . . Disrupt 2 | . . . . 1 . . . . . . . . . . . . . . . . . . . . . . . 1 . . . . . . Operators 6 | . . . . . . . . . . . . 1 . . . 1 2 . . . . 1 . . . . . 1 . . . . . . Sabotage 1 | . 1 . . . . . . . . . . . . . . . . . . . . . . . . . . . . . . . . . Fabricators . | . . . . . . . . . . . . . . . . . . . . . . . . . . . . . . . . . . . Repair Stations . | . . . . . . . . . . . . . . . . . . . . . . . . . . . . . . . . . . . Recycling Units 6 | . . . . 1 . . 1 . . . . . . . . . 3 . . . . . . . . . 1 . . . . . . . Reject 2 | . . . . . . . 1 . . . . . . . . . 1 . . . . . . . . . . . . . . . . . Recyclers 1 | . . . . . . . . . . . . . . . . . 1 . . . . . . . . . . . . . . . . . Mask 3 | . . . . 1 . . . . . . . . . . . . 1 . . . . . . . . . 1 . . . . . . . Scanalyzers . | . . . . . . . . . . . . . . . . . . . . . . . . . . . . . . . . . . . Garrison Access 5 | . . . . . . . . . . . . . . . . 5 . . . . . . . . . . . . . . . . . . Broadcast 1 | . . . . . . . . . . . . . . . . 1 . . . . . . . . . . . . . . . . . . Reprogram 2 | . . . . . . . . . . . . . . . . 2 . . . . . . . . . . . . . . . . . . Intercept 1 | . . . . . . . . . . . . . . . . 1 . . . . . . . . . . . . . . . . . . Watchers 1 | . . . . . . . . . . . . . . . . 1 . . . . . . . . . . . . . . . . . . Data Cores Recovered 7 | . . . . . . . . . . . . . . . . 1 2 . . . . 1 . . . . . . . . 1 2 . . Used 3 | . . . . . . . . . . . . . . . . . 2 . . . . . . . . . . . . . 1 . . . Hacking Detections 110 | . 2 . . 4 7 . 9 . . . 1 14 8 . . 5 16 . . . . 13 . . . . 5 4 . 2 7 7 2 4 Full Trace Events 23 | . 1 . . . 3 . 3 . . . . 5 1 . . . 2 . . . . 3 . . . . 2 1 . 1 . . . 1 Feedback Events 2 | . . . . . . . . . . . . . 2 . . . . . . . . . . . . . . . . . . . . . Corruption 1 | . . . . . . . . . . . . . 1 . . . . . . . . . . . . . . . . . . . . . Hackware Fried 1 | . . . . . . . . . . . . . 1 . . . . . . . . . . . . . . . . . . . . . Feedback Blocked . | . . . . . . . . . . . . . . . . . . . . . . . . . . . . . . . . . . . Robot Schematics Acquired 11 | . . . . 1 . . . . . 4 . . . . . . 2 . . . . . . . . . . . . . . 4 . . Robots Built 8 | . . . . . 5 . 1 . . . . . . . . . . . . . . . . . . . . 2 . . . . . . Authchips . | . . . . . . . . . . . . . . . . . . . . . . . . . . . . . . . . . . . Time 366 | . . . . . 183 . 116 . . . . . . . . . . . . . . . . . . . . 67 . . . . . . Total Robot Build Rating 30 | . . . . . 19 . 3 . . . . . . . . . . . . . . . . . . . . 8 . . . . . . Part Schematics Acquired 63 | . . . . 1 1 . 4 . . 13 . 4 . . . 1 11 . . 4 . 5 . . . . . . . . 12 7 . . Parts Built 13 | . . . . . 2 . . . . . . 4 . . . . 2 . . . . 4 . . . . 1 . . . . . . . Authchips . | . . . . . . . . . . . . . . . . . . . . . . . . . . . . . . . . . . . Time 863 | . . . . . 106 . . . . . . 314 . . . . 58 . . . . 274 . . . . 111 . . . . . . . Total Part Build Rating 92 | . . . . . 12 . . . . . . 23 . . . . 14 . . . . 34 . . . . 9 . . . . . . . Parts Repaired 8 | . . . . . . . 3 . . . . 2 . . . . 1 . . . . . . . . . . 1 . 1 . . . . Time 371 | . . . . . . . 92 . . . . 89 . . . . 68 . . . . . . . . . . 54 . 68 . . . . Parts Recycled . | . . . . . . . . . . . . . . . . . . . . . . . . . . . . . . . . . . . Recycled Matter . | . . . . . . . . . . . . . . . . . . . . . . . . . . . . . . . . . . . Retrieved Matter . | . . . . . . . . . . . . . . . . . . . . . . . . . . . . . . . . . . . Retrieved Components 6 | . . . . 3 . . . . . . . . . . . . 2 . . . . 1 . . . . . . . . . . . . Parts Scanalyzed 9 | . . . . . . . 3 . . . . 1 . . . . 3 . . . . 2 . . . . . . . . . . . . Part Schematics Acquired 8 | . . . . . . . 3 . . . . 1 . . . . 2 . . . . 2 . . . . . . . . . . . . Parts Damaged 4 | . . . . . . . 2 . . . . 1 . . . . . . . . . 1 . . . . . . . . . . . . Bothacking | -11 -10 -10 -10 -8 -7 -7 -7 -7 -7 -7 -6 -6 -6 -6 -6 -6 -5 -5 -5 -5 -4 -4 -4 -4 -4 -3 -3 -3 -3 -2 -2 -2 -1 -1 ------------ Run | Yrd Mat Min Sub Mat Fac Was Fac Low Low Dat Pro Fac Ext Cet Arc Hub Fac Upp Upp Zhi Pro Fac Upp Upp War Pro Res Arm Lab Res Qua Sec Acc Com Used RIF Installer . | . . . . . . . . . . . . . . . . . . . . . . . . . . . . . . . . . . . Robots Hacked . | . . . . . . . . . . . . . . . . . . . . . . . . . . . . . . . . . . . Non-combat . | . . . . . . . . . . . . . . . . . . . . . . . . . . . . . . . . . . . Combat . | . . . . . . . . . . . . . . . . . . . . . . . . . . . . . . . . . . . Robot Hacks Applied . | . . . . . . . . . . . . . . . . . . . . . . . . . . . . . . . . . . . Relay Couplers Released 2 | . . . . . . . 1 . . . . . . . . . . . . . . . . . . . 1 . . . . . . . Machine Destruction 1 | . . . . . . . . . . . . . . . . . . . . . . . . . . . 1 . . . . . . . Programmers 1 | . . . . . . . 1 . . . . . . . . . . . . . . . . . . . . . . . . . . . Fabnet Peak Effective % . | . . . . . . . . . . . . . . . . . . . . . . . . . . . . . . . . . . . Robots Rewired 21 | . . . . . . . . 2 . . . . 10 . . . . 2 . . . . . . 2 2 . . . 2 1 . . . Allies Hacked . | . . . . . . . . . . . . . . . . . . . . . . . . . . . . . . . . . . . Hacks Repelled . | . . . . . . . . . . . . . . . . . . . . . . . . . . . . . . . . . . . Allies | -11 -10 -10 -10 -8 -7 -7 -7 -7 -7 -7 -6 -6 -6 -6 -6 -6 -5 -5 -5 -5 -4 -4 -4 -4 -4 -3 -3 -3 -3 -2 -2 -2 -1 -1 -------- Run | Yrd Mat Min Sub Mat Fac Was Fac Low Low Dat Pro Fac Ext Cet Arc Hub Fac Upp Upp Zhi Pro Fac Upp Upp War Pro Res Arm Lab Res Qua Sec Acc Com Total Allies 105 | . . 1 . . 5 19 1 2 . . . 2 15 . . . . 2 . . . 1 . . 2 2 . 2 . 2 1 . 20 28 Largest Group 20 | . . 1 . . 4 20 14 3 1 1 1 2 13 13 3 . . 2 2 1 1 1 . . 2 2 2 2 . 1 1 . 13 13 Highest-Rated Group 491 | . . 31 . . 48 491 404 74 26 26 26 36 350 350 61 . . 58 58 29 29 26 . . 118 94 94 94 . 69 64 . 183 181 Highest-Rated Ally 69 | . . 31 . . 26 35 35 32 26 26 26 26 39 39 21 . . 29 29 29 29 26 . . 68 47 47 47 . 69 64 . 15 15 Total Orders . | . . . . . . . . . . . . . . . . . . . . . . . . . . . . . . . . . . . Ally Attacks 826 | . . 4 . . 35 35 130 12 . . . . 31 71 . . 22 2 33 . 5 . . . 22 . 8 11 . 12 5 . 210 178 Total Damage 18257 | . . 40 . . 302 1838 3555 269 . . . . 583 1285 . . 724 38 531 . 57 . . . 1347 . 191 441 . 371 143 . 3663 2879 Kills 100 | . . . . . 2 7 30 1 . . . . 4 8 . . 3 . 3 . . . . . 6 . . . . 1 1 . 13 21 Allies Corrupted 2 | . . . . . . . . . . . . . 1 . . . . . . . . . . . . . . . . . 1 . . . Allies Melted . | . . . . . . . . . . . . . . . . . . . . . . . . . . . . . . . . . . . Intel | -11 -10 -10 -10 -8 -7 -7 -7 -7 -7 -7 -6 -6 -6 -6 -6 -6 -5 -5 -5 -5 -4 -4 -4 -4 -4 -3 -3 -3 -3 -2 -2 -2 -1 -1 ------- Run | Yrd Mat Min Sub Mat Fac Was Fac Low Low Dat Pro Fac Ext Cet Arc Hub Fac Upp Upp Zhi Pro Fac Upp Upp War Pro Res Arm Lab Res Qua Sec Acc Com Robot Analysis Total 12 | . 1 . . 2 1 . . . . . . . . . . 2 1 . . 4 . . . . . . 1 . . . . . . . Derelict Logs Recovered 13 | . . . 1 . . . . 1 1 . 2 . . . . . . 1 2 . 1 . 2 2 . . . . . . . . . . Drone Launches 2 | . . . . . . . . . . . . . . . . . 2 . . . . . . . . . . . . . . . . . Drone Recoveries . | . . . . . . . . . . . . . . . . . . . . . . . . . . . . . . . . . . . Exploration | -11 -10 -10 -10 -8 -7 -7 -7 -7 -7 -7 -6 -6 -6 -6 -6 -6 -5 -5 -5 -5 -4 -4 -4 -4 -4 -3 -3 -3 -3 -2 -2 -2 -1 -1 ------------- Run | Yrd Mat Min Sub Mat Fac Was Fac Low Low Dat Pro Fac Ext Cet Arc Hub Fac Upp Upp Zhi Pro Fac Upp Upp War Pro Res Arm Lab Res Qua Sec Acc Com Turns Passed 38319 | 1371 418 265 3771 356 1080 298 1030 488 422 44 560 1822 511 241 1928 467 2774 1354 1411 327 1356 2523 1247 1000 1323 1246 652 1258 716 738 1208 2634 545 935 Spaces Moved 22036 | 128 140 162 2047 223 674 345 1036 604 592 81 623 1484 423 177 345 512 1892 779 831 193 768 1287 759 589 656 729 274 543 516 368 610 1039 263 344 Core 517 | 4 . . . . . . . . . . . . . . 104 . . . . . . . . . . . . . 409 . . . . . Treads 10847 | 71 . . . . . . . . . . . . . . . . 637 779 831 193 768 1287 759 589 656 729 274 543 107 368 610 1039 263 344 Legs . | . . . . . . . . . . . . . . . . . . . . . . . . . . . . . . . . . . . Wheels 660 | 53 54 . . 132 421 . . . . . . . . . . . . . . . . . . . . . . . . . . . . . Hover 10012 | . 86 162 2047 91 253 345 1036 604 592 81 623 1484 423 177 241 512 1255 . . . . . . . . . . . . . . . . . Flight . | . . . . . . . . . . . . . . . . . . . . . . . . . . . . . . . . . . . Fastest Speed 50 | 50 80 100 100 100 58 58 55 53 53 53 53 52 65 65 65 65 65 160 160 160 160 160 160 160 160 160 160 160 50 160 160 147 147 147 Average Speed 120 | 123 92 100 151 119 86 58 65 55 53 53 53 57 65 65 131 65 97 160 160 160 160 160 160 160 160 160 160 160 78 160 160 152 150 193 Slowest Speed 300 | 160 100 100 240 170 230 121 131 58 115 53 53 65 65 65 300 132 160 160 160 160 160 160 160 160 160 160 160 160 160 160 250 250 232 232 Overloaded Moves . | . . . . . . . . . . . . . . . . . . . . . . . . . . . . . . . . . . . Propulsion Burnouts . | . . . . . . . . . . . . . . . . . . . . . . . . . . . . . . . . . . . Robots Hopped . | . . . . . . . . . . . . . . . . . . . . . . . . . . . . . . . . . . . Cave-ins Triggered . | . . . . . . . . . . . . . . . . . . . . . . . . . . . . . . . . . . . Teleports 1 | . . . . . . . . . . . . . . . . . . . . . . . . . . . . . . . . 1 . . Exploration Rate (%) 59 | 18 26 30 88 20 20 96 39 78 79 70 82 44 73 72 78 64 53 94 94 60 95 34 88 83 78 93 11 52 99 16 62 62 11 20 Regions Visited 34 Branch Regions 23 Pre-discovered Areas 9 | . . 1 1 . . . . . . 1 2 . . . . . . . . 3 . . 1 . . . . . . . . . . . Known Exits Taken 21 | . . . . 1 . . 1 . . . 1 1 1 1 1 1 1 1 1 1 1 1 1 1 1 1 1 1 1 . . . . . Unknown Exits Taken 11 | 1 1 1 1 . . . . 1 1 1 . . . . . . . . . . . . . . . . . . . 1 1 1 1 . Scrap Searched 38 | . . . 13 . . . . 3 3 . 2 . . . . . . 3 2 . 4 . 5 2 . 1 . . . . . . . . Spaces Dug 89 | . . . 3 3 . . 3 . . . . 9 . . . 4 18 1 3 . 1 13 1 1 3 1 8 4 1 1 1 5 3 2 Terrain Destroyed 5950 | . . . 131 6 7 6 48 14 6 . 13 155 65 47 7 388 70 48 40 . 41 36 3 28 51 27 11 74 2 17 5 501 1064 3039 Melee 6 | . . . 2 . . . . . . . . . . . . . . . . . . . . . . . . . . . . 1 1 2 Projectile 4742 | . . . 5 6 7 6 22 14 6 . 13 24 . 6 7 8 31 9 7 . 10 31 3 2 5 4 11 27 2 4 5 469 1011 2987 AOE 1202 | . . . 124 . . . 26 . . . . 131 65 41 . 380 39 39 33 . 31 5 . 26 46 23 . 47 . 13 . 31 52 50 Terrain Rammed . | . . . . . . . . . . . . . . . . . . . . . . . . . . . . . . . . . . . Walls Destroyed . | . . . . . . . . . . . . . . . . . . . . . . . . . . . . . . . . . . . Machines Disabled . | . . . . . . . . . . . . . . . . . . . . . . . . . . . . . . . . . . . Actions | -11 -10 -10 -10 -8 -7 -7 -7 -7 -7 -7 -6 -6 -6 -6 -6 -6 -5 -5 -5 -5 -4 -4 -4 -4 -4 -3 -3 -3 -3 -2 -2 -2 -1 -1 --------- Run | Yrd Mat Min Sub Mat Fac Was Fac Low Low Dat Pro Fac Ext Cet Arc Hub Fac Upp Upp Zhi Pro Fac Upp Upp War Pro Res Arm Lab Res Qua Sec Acc Com Total 32656 | 1334 341 251 2454 285 1110 418 1329 725 672 81 821 2387 632 280 1799 623 2779 888 909 211 899 1763 797 645 922 809 490 941 828 517 850 2063 349 454 Wait 6396 | 1196 125 67 176 23 294 23 116 22 21 1 100 686 54 29 1382 55 513 31 1 5 10 285 13 33 111 11 169 96 232 30 21 437 14 14 Move 22003 | 127 139 161 2046 222 674 344 1035 603 591 80 622 1483 422 176 344 511 1891 778 830 192 767 1286 758 588 655 728 273 542 515 367 609 1038 262 344 Hop . | . . . . . . . . . . . . . . . . . . . . . . . . . . . . . . . . . . . Pick Up 92 | 3 2 . 5 1 4 1 3 4 2 . 1 3 . . . . 13 . 3 1 . 8 2 . . 1 3 1 9 1 8 5 2 6 Fast Attach 195 | 4 1 . 7 9 4 3 6 1 . . 1 17 . 3 5 1 20 . 1 6 . 7 . 2 13 . . 8 22 1 17 35 . 1 Attach 47 | 2 1 . . . 2 . 4 . 1 . . 1 . . . . 6 1 . . . . . 1 . . 1 . 5 1 4 7 1 9 Detach 25 | . . . 1 1 . . 3 . . . . 1 . . . . 2 . . . . 1 . . 3 . . 1 7 . 1 1 1 2 Swap 85 | . 5 . 16 1 6 3 3 . . . 2 5 . . 1 1 7 . 2 . 2 5 . . 1 1 2 6 2 3 2 8 . 1 Drop 248 | . 3 1 11 5 7 5 5 5 3 . 1 18 . 4 4 . 34 . 3 6 . 15 2 1 13 1 1 6 29 1 24 29 3 8 Fire 2168 | 2 29 7 116 15 46 29 86 54 27 . 56 124 44 40 33 32 169 54 36 1 80 109 13 15 69 29 24 193 7 46 96 410 36 41 Melee 100 | . 18 . 28 8 17 . 8 1 9 . . . . . . . . . . . . . . . . . . . . . 1 1 4 5 Ram . | . . . . . . . . . . . . . . . . . . . . . . . . . . . . . . . . . . . Kick . | . . . . . . . . . . . . . . . . . . . . . . . . . . . . . . . . . . . Crush . | . . . . . . . . . . . . . . . . . . . . . . . . . . . . . . . . . . . Escape Stasis 5 | . . . . . . . . . . . . . . . . . . . . . . . . . . . . . . . . 5 . . Rewire 123 | . . . . . 1 . . 10 . . . . 53 . . . . 4 . . . . . . 20 10 . . . 24 1 . . . Trap 6 | . . . 2 . . . . . . . . 2 . . . 1 1 . . . . . . . . . . . . . . . . . Miscellaneous 1163 | . 18 15 46 . 55 10 60 25 18 . 38 47 59 28 30 22 123 20 33 . 40 47 9 5 37 28 17 88 . 43 66 87 26 23 Route ------- -11/Scrapyard -10/Materials (discovered 2 exits: [*Mat] / [*Min]) -10/Mines (discovered 2 exits: [Mat] / *Sub) -10/Subcaves (discovered 3 exits: *Mat x2 / [*Rec]) -8/Materials (discovered 3 exits: *Fac x3) -7/Factory (discovered 5 exits: Fac / Sto x2 / *Low x2) -7/Waste -7/Factory (discovered 6 exits: *Fac x2 / *Sto x2 / *Low x2) -7/Lower Caves -7/Lower Caves (discovered 2 exits: *Fac / *Dat) -7/Data Miner -6/Proximity Caves -6/Factory (discovered 3 exits: [Low] / *Ext x2) -6/Extension (discovered 3 exits: *Fac x2 / *Cet) -6/Cetus (discovered 2 exits: *Fac / *Arc) -6/Archives (discovered 3 exits: *Fac / *Hub x2) -6/Hub_04(d) (discovered 5 exits: *Fac x4 / Gar) -5/Factory (discovered 6 exits: *Fac x4 / *Upp x2) -5/Upper Caves -5/Upper Caves (discovered 2 exits: *Fac / *Zhi) -5/Zhirov -4/Proximity Caves -4/Factory (discovered 6 exits: *Res x4 / *Upp x2) -4/Upper Caves -4/Upper Caves (discovered 2 exits: *Res / *War) -4/Warlord -3/Proximity Caves -3/Research (discovered 5 exits: Res x2 / *Arm / Tes x2) -3/Armory (discovered 2 exits: *Res / *Lab) -3/Lab -2/Research -2/Quarantine (discovered 2 exits: Acc / *Sec) -2/Section 7 -1/Access -1/Command (discovered 1 exit: [Sur]) History --------- Turn | Location | Event 37 | -11/Scrapyard | Discovered new exit (range 12) 1162 | -11/Scrapyard | Assembled infested the area 1303 | -11/Scrapyard | Upgraded with Propulsion slot (x1) 1303 | -11/Scrapyard | Upgraded with Utility slot (x1) 1303 | -11/Scrapyard | Upgraded with Weapon slot (x1) 1372 | -11/Scrapyard | Entered Materials 1397 | -10/Materials | Build established: Mutant 1627 | -10/Materials | Discovered new exit (range 11) 1630 | -10/Materials | Central database locked down 1675 | -10/Materials | Discovered new exit (range 5) 1774 | -10/Materials | Core integrity fell below 50% 1784 | -10/Materials | Core integrity fell below 20% 1785 | -10/Materials | Reached level 2 1790 | -10/Materials | Entered Mines 1794 | -10/Mines | Escorted by a lone wolf Derelict 1814 | -10/Mines | Learned location of Storage (-7) 1825 | -10/Mines | Build established: Scavenger-Mutant 1887 | -10/Mines | Discovered new exit (range 12) 1893 | -10/Mines | Discovered new exit (range 15) 1998 | -10/Mines | Assembled infested the area 2055 | -10/Mines | Entered Subcaves 2057 | -10/Subcaves | Reached level 3 2203 | -10/Subcaves | Shifting Twisted Machinery released Sub. Beam Cannon 2222 | -10/Subcaves | Shifting Twisted Machinery released Sub. Monowheel 2243 | -10/Subcaves | Upgraded with Utility slot (x2) 2325 | -10/Subcaves | Learned location of Zion (-6) 2325 | -10/Subcaves | Met a Zionite searching for "candidates" 2441 | -10/Subcaves | Ambushed by angry Subdweller bent on revenge 2506 | -10/Subcaves | Shifting Twisted Machinery released Sub. Laser 2510 | -10/Subcaves | Shifting Twisted Machinery released Enh. Flamer 2601 | -10/Subcaves | Discovered new exit (range 14) 2628 | -10/Subcaves | Learned Materials terminal intel 3193 | -10/Subcaves | Discovered new exit (range 10) 3521 | -10/Subcaves | A swath of the cavern ceiling suddenly collapsed 3843 | -10/Subcaves | Ambushed by angry Subdweller bent on revenge 4150 | -10/Subcaves | A Subdweller sparked back to life 4150 | -10/Subcaves | A Subdweller sparked back to life 4150 | -10/Subcaves | A Subdweller sparked back to life 4161 | -10/Subcaves | Ambushed by Subdweller buried in earth 4161 | -10/Subcaves | Ambushed by Subdweller buried in earth 4165 | -10/Subcaves | Ambushed by Subdweller buried in earth 4219 | -10/Subcaves | Found Prototype Processor 4219 | -10/Subcaves | Identified Rainbow Chip 4221 | -10/Subcaves | Attached Rainbow Chip, gained temporary slots: Power, Propulsion, Utility, Weapon 4406 | -10/Subcaves | Reached level 4 4711 | -10/Subcaves | Build established: Scavenger-Skirmisher 5005 | -10/Subcaves | Discovered new exit (range 11) 5036 | -10/Subcaves | Disturbed a concealed Subdweller 5439 | -10/Subcaves | Visited 4L-MR0's lab 5457 | -10/Subcaves | Found Powered Cannon 5458 | -10/Subcaves | Attached Powered Cannon, gained temporary slot: Power 5577 | -10/Subcaves | Shifting Twisted Machinery released Battle Rifle 5582 | -10/Subcaves | Shifting Twisted Machinery released Sub. Beam Cannon 5678 | -10/Subcaves | Visited Clippyterm 5826 | -10/Subcaves | Entered Materials 5827 | -8/Materials | Loaded intel: 12 terminal locations 5827 | -8/Materials | Core integrity fell below 50% 5827 | -8/Materials | Core integrity fell below 20% 5828 | -8/Materials | Reached level 5 5985 | -8/Materials | Upgraded with Propulsion slot (x1) 5985 | -8/Materials | Upgraded with Utility slot (x1) 6116 | -8/Materials | Identified exit to Factory 6172 | -8/Materials | Central database locked down 6182 | -8/Materials | Entered Factory 6183 | -7/Factory | Core integrity fell below 50% 6183 | -7/Factory | Core integrity fell below 20% 6184 | -7/Factory | Reached level 6 6189 | -7/Factory | Build established: Hacker-Mutant 6347 | -7/Factory | Fabricated S-27 Virus? 6408 | -7/Factory | Reached level 7 6523 | -7/Factory | Upgraded with Utility slot (x1) 6620 | -7/Factory | Discovered new exit (range 3) 6697 | -7/Factory | Garrison activated, responded to threat 6716 | -7/Factory | Reached level 8 6859 | -7/Factory | Discovered new exit (range 16) 6901 | -7/Factory | Fabricated Neutrino Core (x2) 7083 | -7/Factory | Reached level 9 7212 | -7/Factory | Identified exit to Storage 7212 | -7/Factory | Identified exit to Lower Caves 7230 | -7/Factory | Fabricated O-24 Administrator? 7262 | -7/Factory | Sucked down chute 7262 | -7/Factory | Entered Waste 7268 | -7/Waste | Found Imp. Powered Armor 7269 | -7/Waste | Spotted C-40 Crusher 7270 | -7/Waste | 1 allies followed down the chute 7282 | -7/Waste | Spotted C-40 Crusher 7283 | -7/Waste | Spotted C-40 Crusher 7291 | -7/Waste | Spotted C-40 Crusher 7292 | -7/Waste | Destroyed C-40 Crusher 7305 | -7/Waste | Destroyed C-40 Crusher 7314 | -7/Waste | Destroyed C-40 Crusher 7319 | -7/Waste | Destroyed C-40 Crusher 7319 | -7/Waste | Spotted C-40 Crusher 7339 | -7/Waste | Destroyed C-40 Crusher 7383 | -7/Waste | Warlord forces began an assault 7422 | -7/Waste | Spotted C-40 Crusher 7433 | -7/Waste | Allies destroyed C-40 Crusher 7462 | -7/Waste | Lost 6 allies 7488 | -7/Waste | Discovered new exit (range 16) 7560 | -7/Waste | Entered Factory 7560 | -7/Factory | Accompanied by 14 allies 7649 | -7/Factory | Repaired Imp. Powered Armor 7658 | -7/Factory | Reached level 10 7674 | -7/Factory | Upgraded with Utility slot (x1) 7779 | -7/Factory | Reached level 11 7800 | -7/Factory | Reached level 12 7851 | -7/Factory | Discovered exit to Storage (range 15) 7856 | -7/Factory | Reached level 13 7876 | -7/Factory | Discovered exit to Storage (range 14) 7886 | -7/Factory | Lost 6 allies 7886 | -7/Factory | Upgraded with Utility slot (x2) 7960 | -7/Factory | First assault squad dispatched 7967 | -7/Factory | Reached level 14 7978 | -7/Factory | P-70 Sage assimilated allied BN-XH2(b) 8064 | -7/Factory | Lost 4 allies 8139 | -7/Factory | Fabricated O-24 Administrator? 8188 | -7/Factory | Repaired Cmb. Airjet 8200 | -7/Factory | Discovered new exit (range 17) 8205 | -7/Factory | Reached level 15 8401 | -7/Factory | Repaired Broken Antigrav System 8414 | -7/Factory | Discovered new exit (range 15) 8417 | -7/Factory | High security lockdown imminent 8497 | -7/Factory | High security lockdown engaged 8590 | -7/Factory | Entered Lower Caves 8590 | -7/Lower Caves | Accompanied by 2 allies 8593 | -7/Lower Caves | Attracted the attention of an 0b10 outpost 8640 | -7/Lower Caves | Destroyed 8 combat bots 8787 | -7/Lower Caves | Spotted B-75 Beast 8812 | -7/Lower Caves | Destroyed B-75 Beast 8851 | -7/Lower Caves | Reached level 16 8854 | -7/Lower Caves | Attracted the attention of an 0b10 checkpoint 8920 | -7/Lower Caves | Upgraded with Propulsion slot (x1) 9010 | -7/Lower Caves | Discovered new exit (range 9) 9078 | -7/Lower Caves | Entered another Lower Caves area 9078 | -7/Lower Caves | Accompanied by 1 ally 9079 | -7/Lower Caves | Encountered a Warlord checkpoint 9089 | -7/Lower Caves | Discovered new exit (range 7) 9098 | -7/Lower Caves | Spotted B-75 Beast 9125 | -7/Lower Caves | Destroyed B-75 Beast 9144 | -7/Lower Caves | Learned Factory stockpile data 9441 | -7/Lower Caves | Upgraded with Utility slot (x1) 9443 | -7/Lower Caves | Found Alien Artifact 9459 | -7/Lower Caves | Discovered new exit (range 10) 9500 | -7/Lower Caves | Entered Data Miner 9500 | -7/Data Miner | Accompanied by 1 ally 9500 | -7/Data Miner | Discovered new exit (range 6) 9510 | -7/Data Miner | Met Data Miner 9523 | -7/Data Miner | Learned location of Section 7 (-2) 9523 | -7/Data Miner | Acquired the access code to Warlord's prototype stash 9530 | -7/Data Miner | Received God Mode back door access code from Data Miner 9544 | -7/Data Miner | Entered Proximity Caves 9544 | -6/Proximity Caves | Accompanied by 1 ally 9546 | -6/Proximity Caves | Reached level 17 9738 | -6/Proximity Caves | Spotted B-75 Beast 9740 | -6/Proximity Caves | Destroyed B-75 Beast 9847 | -6/Proximity Caves | Reached level 18 9853 | -6/Proximity Caves | Build established: Hacker-Scout 10036 | -6/Proximity Caves | Discovered new exit (range 3) 10037 | -6/Proximity Caves | Identified exit to Factory 10085 | -6/Proximity Caves | Learned 8 Research zone layouts 10085 | -6/Proximity Caves | Learned Factory emergency access door positions 10085 | -6/Proximity Caves | Learned Research stockpile data 10085 | -6/Proximity Caves | Learned Armory terminal intel 10085 | -6/Proximity Caves | Learned Factory garrison access intel 10104 | -6/Proximity Caves | Entered Factory 10105 | -6/Factory | Identified exit to Extension 10108 | -6/Factory | Loaded intel: 4 garrison access locations 10142 | -6/Factory | Identified Dimensional Node Initializer 10334 | -6/Factory | Fabricated Gravity Neutralizer? 10717 | -6/Factory | Repaired Broken Imp. Trap Extractor 10722 | -6/Factory | Discovered new exit (range 15) 10845 | -6/Factory | Discovered exit to Extension (range 8) 10854 | -6/Factory | Reached level 19 11178 | -6/Factory | Fabricated Combat Drone Bay? 11275 | -6/Factory | Fabricated Cmb. Gravmag System (x2) 11476 | -6/Factory | Garrison activated, responded to threat 11524 | -6/Factory | Cargo convoy interrupted 11561 | -6/Factory | Core integrity fell below 50% 11602 | -6/Factory | Destroyed 12 combat bots 11603 | -6/Factory | Found Prototype Processor 11603 | -6/Factory | Identified Spectral Analyzer 11610 | -6/Factory | Found Prototype Device 11610 | -6/Factory | Identified Exp. Shield Generator 11639 | -6/Factory | Upgraded with Power slot (x1) 11643 | -6/Factory | Upgraded with Weapon slot (x1) 11652 | -6/Factory | Found Prototype Launcher 11652 | -6/Factory | Identified Mni. Smartbomb Launcher 11683 | -6/Factory | Reached level 20 11816 | -6/Factory | Repaired Imp. Powered Armor 11926 | -6/Factory | Entered Extension 11945 | -6/Extension | Energy Cycler disabled 11947 | -6/Extension | Rescued a captive Derelict 11947 | -6/Extension | Rescued a captive Derelict 11953 | -6/Extension | Rescued a captive Derelict 11957 | -6/Extension | Rescued a captive Derelict 11959 | -6/Extension | Rescued a captive Derelict 11959 | -6/Extension | Rescued a captive Derelict 11967 | -6/Extension | Rescued a captive Derelict 12045 | -6/Extension | Hacking Suite fried by hacking feedback 12150 | -6/Extension | Spotted B-75 Beast 12163 | -6/Extension | Spotted B-75 Beast 12178 | -6/Extension | Discovered new exit (range 16) 12179 | -6/Extension | Allies destroyed B-75 Beast 12185 | -6/Extension | Allies destroyed B-75 Beast 12213 | -6/Extension | Extracted ID and sensor layout for unrecognized location from A7's data core 12383 | -6/Extension | Discovered new exit (range 10) 12384 | -6/Extension | Discovered new exit (range 6) 12408 | -6/Extension | Identified exit to Cetus 12437 | -6/Extension | Entered Cetus 12437 | -6/Cetus | Accompanied by 13 allies 12447 | -6/Cetus | Spotted Cetus Guard 12447 | -6/Cetus | Spotted Cetus Guard 12449 | -6/Cetus | Spotted Cetus Guard 12452 | -6/Cetus | Allies destroyed Cetus Guard 12454 | -6/Cetus | Spotted Cetus Guard 12472 | -6/Cetus | Allies destroyed Cetus Guard 12472 | -6/Cetus | Allies destroyed Cetus Guard 12477 | -6/Cetus | Reached level 21 12477 | -6/Cetus | Allies destroyed Cetus Guard 12506 | -6/Cetus | Cetus Manufacturing Module disabled 12507 | -6/Cetus | Lost 5 allies 12529 | -6/Cetus | Build established: Commander-Scout 12551 | -6/Cetus | Discovered new exit (range 17) 12567 | -6/Cetus | Spotted Cetus Guard 12568 | -6/Cetus | Lost 3 allies 12568 | -6/Cetus | Spotted Cetus Guard 12569 | -6/Cetus | Spotted Cetus Guard 12572 | -6/Cetus | Destroyed Cetus Guard 12584 | -6/Cetus | Destroyed Cetus Guard 12594 | -6/Cetus | Spotted Cetus Guard 12603 | -6/Cetus | Destroyed Cetus Guard 12615 | -6/Cetus | Discovered new exit (range 16) 12626 | -6/Cetus | Met Revision 17 12628 | -6/Cetus | Upgraded with Power slot (x1) 12628 | -6/Cetus | Upgraded with Utility slot (x1) 12652 | -6/Cetus | Identified exit to Archives 12678 | -6/Cetus | Entered Archives 12678 | -6/Archives | Accompanied by 3 allies 12748 | -6/Archives | Lost 3 allies 13079 | -6/Archives | Unable to access archive contents 13086 | -6/Archives | Discovered new exit (range 17) 13088 | -6/Archives | Unable to access archive contents 13095 | -6/Archives | Unable to access archive contents 13101 | -6/Archives | Discovered new exit (range 16) 13103 | -6/Archives | Unable to access archive contents 13123 | -6/Archives | Discovered new exit (range 16) 13476 | -6/Archives | Build established: Hacker-Skirmisher 14606 | -6/Archives | Identified exit to Hub_04(d) 14606 | -6/Archives | Entered Hub_04(d) 14623 | -6/Hub_04(d) | Identified exit to Factory 14692 | -6/Hub_04(d) | Build established: Hacker-Scout 14756 | -6/Hub_04(d) | Identified exit to Garrison 14833 | -6/Hub_04(d) | Central database locked down 15013 | -6/Hub_04(d) | Network Hub disabled 15030 | -6/Hub_04(d) | Network Hub disabled 15035 | -6/Hub_04(d) | Disrupted transfer network 15064 | -6/Hub_04(d) | Spotted Lightning 15064 | -6/Hub_04(d) | Spotted Lightning 15073 | -6/Hub_04(d) | Entered Factory 15075 | -5/Factory | Reached level 22 15256 | -5/Factory | Identified exit to Factory 15423 | -5/Factory | Spotted B-75 Beast 15427 | -5/Factory | Destroyed B-75 Beast 15455 | -5/Factory | Identified exit to Upper Caves 15881 | -5/Factory | Central database locked down 16200 | -5/Factory | Cargo convoy interrupted 16255 | -5/Factory | Core integrity fell below 50% 16260 | -5/Factory | Reached level 23 16273 | -5/Factory | First assault squad dispatched 16281 | -5/Factory | Destroyed 8 combat bots 16294 | -5/Factory | Found Prototype Processor 16294 | -5/Factory | Identified Exp. Core Analyzer 16298 | -5/Factory | Found Prototype Device 16298 | -5/Factory | Identified Adv. Particle Accelerator 16341 | -5/Factory | Found Exp. Core Analyzer 16579 | -5/Factory | Build established: Gunner 16920 | -5/Factory | Fabricated Quantum Capacitor? 17567 | -5/Factory | Repaired Broken Exp. Shield Generator 17837 | -5/Factory | Found Prototype Device 17837 | -5/Factory | Identified Active Sensor Suite 17847 | -5/Factory | Entered Upper Caves 18190 | -5/Upper Caves | Learned 8 Factory zone layouts 18337 | -5/Upper Caves | Attracted the attention of an 0b10 outpost 18350 | -5/Upper Caves | Reached level 24 18378 | -5/Upper Caves | Destroyed 13 combat bots 18420 | -5/Upper Caves | Upgraded with Utility slot (x1) 18648 | -5/Upper Caves | Attracted the attention of an 0b10 checkpoint 18737 | -5/Upper Caves | Discovered new exit (range 17) 18763 | -5/Upper Caves | Spotted B-75 Beast 18768 | -5/Upper Caves | Destroyed B-75 Beast 19197 | -5/Upper Caves | Identified exit to Upper Caves 19201 | -5/Upper Caves | Entered another Upper Caves area 19201 | -5/Upper Caves | Accompanied by 2 allies 19205 | -5/Upper Caves | Learned Factory stockpile data 19276 | -5/Upper Caves | Discovered exit to Factory (range 7) 19958 | -5/Upper Caves | Attracted the attention of an 0b10 base 20000 | -5/Upper Caves | Learned Research stockpile data 20000 | -5/Upper Caves | Learned Research security intel 20000 | -5/Upper Caves | Learned Research terminal intel 20310 | -5/Upper Caves | Discovered new exit (range 6) 20607 | -5/Upper Caves | Identified exit to Zhirov 20612 | -5/Upper Caves | Entered Zhirov 20612 | -5/Zhirov | Accompanied by 1 ally 20612 | -5/Zhirov | Discovered new exit (range 4) 20641 | -5/Zhirov | Met Zhirov 20670 | -5/Zhirov | Learned location of Quarantine (-2) 20670 | -5/Zhirov | Learned location of Testing (-3) 20670 | -5/Zhirov | Learned location of Command (-1) 20684 | -5/Zhirov | Zhirov requested help retrieving the SGEMP Prototype 20719 | -5/Zhirov | Found Alien Artifact 20719 | -5/Zhirov | Identified Integrated Dissipator 20719 | -5/Zhirov | Installed Integrated Dissipator, increased core heat dissipation (+20) 20875 | -5/Zhirov | Found Alien Artifact 20937 | -5/Zhirov | Identified exit to Proximity Caves 20939 | -5/Zhirov | Entered Proximity Caves 20939 | -4/Proximity Caves | Accompanied by 1 ally 21268 | -4/Proximity Caves | Learned Research garrison access intel 21310 | -4/Proximity Caves | Reached level 25 21414 | -4/Proximity Caves | Attracted the attention of an 0b10 base 21476 | -4/Proximity Caves | Destroyed 11 combat bots 21501 | -4/Proximity Caves | Learned location of 2 exits from Lower Caves 21501 | -4/Proximity Caves | Learned Factory security intel 21501 | -4/Proximity Caves | Learned Armory garrison access intel 21761 | -4/Proximity Caves | Spotted B-86 Titan 21772 | -4/Proximity Caves | Destroyed B-86 Titan 21808 | -4/Proximity Caves | Discovered exit to Factory (range 10) 22295 | -4/Proximity Caves | Entered Factory 22296 | -4/Factory | Identified exit to Research 22299 | -4/Factory | Identified exit to DSF 22315 | -4/Factory | Found Prototype Launcher 22315 | -4/Factory | Identified Com. Tesla Bomb Launcher 22534 | -4/Factory | Reached level 26 22640 | -4/Factory | Discovered new exit (range 20) 22670 | -4/Factory | Identified exit to Upper Caves 22908 | -4/Factory | Fabricated Lrn. Terrain Scanner? 23373 | -4/Factory | Fabricated Quantum Reactor? 23542 | -4/Factory | Identified Transdimensional Reconstructor 23717 | -4/Factory | Build established: Machinist-Gunner 24226 | -4/Factory | Spotted B-86 Titan 24234 | -4/Factory | Destroyed B-86 Titan 24372 | -4/Factory | Fabricated Adv. Particle Accelerator? 24818 | -4/Factory | Entered Upper Caves 24973 | -4/Upper Caves | Attracted the attention of an 0b10 checkpoint 25083 | -4/Upper Caves | Spotted B-86 Titan 25087 | -4/Upper Caves | Destroyed B-86 Titan 25367 | -4/Upper Caves | Discovered new exit (range 13) 25444 | -4/Upper Caves | Identified exit to Upper Caves 25587 | -4/Upper Caves | Learned location of 1 exit from Research 26065 | -4/Upper Caves | Entered another Upper Caves area 26126 | -4/Upper Caves | Spotted B-86 Titan 26130 | -4/Upper Caves | Destroyed B-86 Titan 26138 | -4/Upper Caves | Discovered exit to Research (range 9) 26353 | -4/Upper Caves | Learned Research stockpile data 26430 | -4/Upper Caves | Learned 4 Research zone layouts 26612 | -4/Upper Caves | Acquired the password to a Derelict Tinkerer's latest research 26906 | -4/Upper Caves | Reached level 27 26986 | -4/Upper Caves | Discovered new exit (range 19) 27015 | -4/Upper Caves | Identified exit to Warlord 27037 | -4/Upper Caves | Found Alien Artifact 27037 | -4/Upper Caves | Identified Core Expander 27037 | -4/Upper Caves | Installed Core Expander, added new Utility slot 27065 | -4/Upper Caves | Entered Warlord 27066 | -4/Warlord | Identified exit to Proximity Caves 27473 | -4/Warlord | Met Warlord 27490 | -4/Warlord | Opened Warlord's prototype stash 27496 | -4/Warlord | Found Prototype Reactor 27496 | -4/Warlord | Identified Vortex Chain Reactor 27498 | -4/Warlord | Warlord's base attacked by MAIN.C 27508 | -4/Warlord | Found Prototype Device 27508 | -4/Warlord | Identified System Purifier 27517 | -4/Warlord | Found Prototype Hackware 27517 | -4/Warlord | Identified Ghost Barrier 27587 | -4/Warlord | Found Prototype Device 27587 | -4/Warlord | Identified Minesniffer Drone Bay 27730 | -4/Warlord | Found Prototype Energy Cannon 27730 | -4/Warlord | Identified Vortex Cannon 27793 | -4/Warlord | Build established: Hacker-Gunner 27848 | -4/Warlord | Warlord forces counterattacked 27888 | -4/Warlord | Lost 3 allies 27907 | -4/Warlord | Spotted Striker 27918 | -4/Warlord | Destroyed Striker 27935 | -4/Warlord | Spotted Executioner 27959 | -4/Warlord | Spotted Executioner 27998 | -4/Warlord | Lost 13 allies 28031 | -4/Warlord | Destroyed 9 combat bots 28098 | -4/Warlord | Spotted Executioner 28099 | -4/Warlord | Spotted Striker 28099 | -4/Warlord | Spotted Executioner 28108 | -4/Warlord | Destroyed Executioner 28120 | -4/Warlord | Core integrity fell below 50% 28148 | -4/Warlord | Destroyed 12 combat bots 28148 | -4/Warlord | Lost 6 allies 28173 | -4/Warlord | Warlord base infiltrated, sounded retreat 28265 | -4/Warlord | Spotted Executioner 28266 | -4/Warlord | Spotted Executioner 28269 | -4/Warlord | Destroyed Executioner 28314 | -4/Warlord | Spotted Striker 28316 | -4/Warlord | Destroyed Striker 28325 | -4/Warlord | Spotted Executioner 28345 | -4/Warlord | Found Prototype Device 28345 | -4/Warlord | Identified Exp. Thermal Shield 28357 | -4/Warlord | Destroyed 10 combat bots 28366 | -4/Warlord | Lost 4 allies 28388 | -4/Warlord | Entered Proximity Caves 28390 | -3/Proximity Caves | Reached level 28 29237 | -3/Proximity Caves | Spotted B-86 Titan 29245 | -3/Proximity Caves | Destroyed B-86 Titan 29291 | -3/Proximity Caves | Discovered exit to Research (range 17) 29570 | -3/Proximity Caves | Attracted the attention of an 0b10 outpost 29634 | -3/Proximity Caves | Entered Research 29634 | -3/Research | Accompanied by 2 allies 29635 | -3/Research | Identified exit to Testing 29636 | -3/Research | Identified exit to Research 29639 | -3/Research | Loaded intel: 24 terminal locations 29640 | -3/Research | Loaded intel: 4 garrison access locations 29671 | -3/Research | Reached level 29 29672 | -3/Research | Upgraded with Utility slot (x1) 29768 | -3/Research | Discovered exit to Testing (range 21) 30018 | -3/Research | Fabricated Adv. Particle Accelerator? 30178 | -3/Research | Spotted B-86 Titan 30180 | -3/Research | Destroyed B-86 Titan 30229 | -3/Research | Discovered new exit (range 22) 30248 | -3/Research | Discovered exit to Research (range 21) 30270 | -3/Research | Identified exit to Armory 30286 | -3/Research | Entered Armory 30286 | -3/Armory | Accompanied by 2 allies 30287 | -3/Armory | Loaded intel: 8 terminal locations 30409 | -3/Armory | Repaired Centrium Medium Armor Plating 30599 | -3/Armory | Fabricated Y-54 Guardian? 30875 | -3/Armory | Discovered exit to Research (range 15) 30912 | -3/Armory | Reached level 30 30957 | -3/Armory | Destroyed 14 combat bots 31055 | -3/Armory | Core integrity fell below 50% 31081 | -3/Armory | First assault squad dispatched 31382 | -3/Armory | Destroyed 20 combat bots 31450 | -3/Armory | Destroyed 8 combat bots 31537 | -3/Armory | Discovered new exit (range 5) 31542 | -3/Armory | Identified exit to Lab 31544 | -3/Armory | Entered Lab 31544 | -3/Lab | Discovered exit to Research (range 9) 31546 | -3/Lab | Reached level 31 31562 | -3/Lab | Hidden lab's door opened automatically 31562 | -3/Lab | Sensor layout match revealed 31563 | -3/Lab | Gained access to the hidden lab's interior 31699 | -3/Lab | Unable to decrypt terminal 31714 | -3/Lab | Found Prototype Device 31714 | -3/Lab | Identified AEGIS Remote Shield 31717 | -3/Lab | Found Prototype Energy Gun 31717 | -3/Lab | Identified Tachyon Dispersion Ray 31720 | -3/Lab | Found Prototype Energy Cannon 31720 | -3/Lab | Identified Warp Cannon 31727 | -3/Lab | Found Prototype Hackware 31727 | -3/Lab | Identified Quantum Router 31759 | -3/Lab | Found Integrated Dissipator 31759 | -3/Lab | Installed Integrated Dissipator, increased core heat dissipation (+20) 31780 | -3/Lab | Found Core Expander 31780 | -3/Lab | Installed Core Expander, added new Power slot 31805 | -3/Lab | Found Prototype Special Weapon 31805 | -3/Lab | Identified Gui. Remote Datajack 32086 | -3/Lab | Detected for breach 32089 | -3/Lab | Unable to decrypt terminal 32090 | -3/Lab | Found Alien Artifact 32091 | -3/Lab | Identified LC Capacitor 32097 | -3/Lab | Confronted by A5 32109 | -3/Lab | Found Alien Artifact 32109 | -3/Lab | Identified Core Reset Matrix 32109 | -3/Lab | Used Core Reset Matrix 32113 | -3/Lab | Sensed 3 artifacts in vicinity 32114 | -3/Lab | Discovered exit to Research (range 6) 32139 | -3/Lab | Destroyed A5 32181 | -3/Lab | Found Prototype Protection 32181 | -3/Lab | Identified Med. Regenerative Plating 32198 | -3/Lab | Found Prototype Hackware 32198 | -3/Lab | Identified Exp. System Shield 32260 | -3/Lab | Entered Research 32260 | -2/Research | Warlord forces began assault on 0b10 32320 | -2/Research | Core integrity fell below 50% 32340 | -2/Research | Repaired Broken System Purifier 32370 | -2/Research | Research machine network offline 32379 | -2/Research | Build established: Generator-Gunner 32531 | -2/Research | Reached level 32 32618 | -2/Research | Upgraded with Weapon slot (x1) 32872 | -2/Research | Spotted Executioner 32872 | -2/Research | Spotted Striker 32876 | -2/Research | Destroyed Executioner 32877 | -2/Research | Destroyed Striker 32969 | -2/Research | Discovered new exit (range 16) 32998 | -2/Research | Entered Quarantine 32998 | -2/Quarantine | Accompanied by 1 ally 32999 | -2/Quarantine | Detected hypermatrix surge 32999 | -2/Quarantine | Sensed 15 artifacts in vicinity 33052 | -2/Quarantine | Found Core Stripper 33055 | -2/Quarantine | Lost 5 allies 33249 | -2/Quarantine | Found Subatomic Replicator 33366 | -2/Quarantine | Met incapacitated Sigix Warrior 33366 | -2/Quarantine | Lockdown squad dispatched 33369 | -2/Quarantine | Acquired the access code to the Sigix quarantine chamber 33372 | -2/Quarantine | Unlocked Sigix quarantine chamber 33561 | -2/Quarantine | Intercept squad dispatched 33566 | -2/Quarantine | Spotted Tracker 33567 | -2/Quarantine | Spotted Tracker 33570 | -2/Quarantine | Allies destroyed Tracker 33572 | -2/Quarantine | Reached level 33 33572 | -2/Quarantine | Destroyed Tracker 33577 | -2/Quarantine | Spotted Combat Programmer 33578 | -2/Quarantine | Spotted Combat Programmer 33579 | -2/Quarantine | Destroyed Combat Programmer 33583 | -2/Quarantine | Destroyed Combat Programmer 33700 | -2/Quarantine | Found Hpw. Transdimensional Reconstructor 33793 | -2/Quarantine | Discovered new exit (range 19) 33936 | -2/Quarantine | Spotted Fortress 33942 | -2/Quarantine | Destroyed Fortress 33963 | -2/Quarantine | Found Vortex Chain Reactor 33968 | -2/Quarantine | Found Prototype Device 33968 | -2/Quarantine | Identified Thermal Barrier 33978 | -2/Quarantine | Found Prototype Device 33978 | -2/Quarantine | Identified Exp. Force Field 33992 | -2/Quarantine | Found Exp. EM Disruption Field 33998 | -2/Quarantine | First assault squad dispatched 34192 | -2/Quarantine | Intercept squad dispatched 34198 | -2/Quarantine | Discovered new exit (range 6) 34206 | -2/Quarantine | Entered Section 7 34207 | -2/Section 7 | Sensed 22 artifacts in vicinity 34315 | -2/Section 7 | Spotted S7 Guard 34318 | -2/Section 7 | Destroyed S7 Guard 34344 | -2/Section 7 | Found Integrated Thermoelectric Network 34344 | -2/Section 7 | Installed Integrated Thermoelectric Network, gained heat-energy exchange potential 34511 | -2/Section 7 | Spotted B-90 Cyclops 34537 | -2/Section 7 | Destroyed B-90 Cyclops 34556 | -2/Section 7 | Found Integrated Mediator 34556 | -2/Section 7 | Installed Integrated Mediator, increased core attachment efficiency 34678 | -2/Section 7 | Spotted S7 Guard 34689 | -2/Section 7 | Destroyed S7 Guard 34705 | -2/Section 7 | Found Core Physics Calibrator 34805 | -2/Section 7 | Intercept squad dispatched 34812 | -2/Section 7 | Spotted Tracker 34813 | -2/Section 7 | Spotted Tracker 34816 | -2/Section 7 | Destroyed Tracker 34817 | -2/Section 7 | Destroyed Tracker 34822 | -2/Section 7 | Spotted Combat Programmer 34826 | -2/Section 7 | Destroyed Combat Programmer 34829 | -2/Section 7 | Spotted Combat Programmer 34831 | -2/Section 7 | Destroyed Combat Programmer 34874 | -2/Section 7 | Build established: Alien-Gunner 35305 | -2/Section 7 | Spotted S7 Guard 35367 | -2/Section 7 | Destroyed S7 Guard 35395 | -2/Section 7 | Spotted Alpha 7 35400 | -2/Section 7 | Spotted Alpha 7 35404 | -2/Section 7 | Destroyed Alpha 7 35408 | -2/Section 7 | Destroyed Alpha 7 35412 | -2/Section 7 | Reached level 34 35433 | -2/Section 7 | Destroyed 7 combat bots 35586 | -2/Section 7 | Spotted B-99 Colossus 35619 | -2/Section 7 | Destroyed B-99 Colossus 35706 | -2/Section 7 | First assault squad dispatched 35735 | -2/Section 7 | Intercept squad dispatched 35736 | -2/Section 7 | Found LRC Insulator 35736 | -2/Section 7 | Installed LRC Insulator, gained EM resistance (25) 35745 | -2/Section 7 | Found LRC Armor 35745 | -2/Section 7 | Installed LRC Armor, increased core integrity (+250) 35748 | -2/Section 7 | Found LRC Insulator 35748 | -2/Section 7 | Installed LRC Insulator, gained EM resistance (25) 35754 | -2/Section 7 | Spotted Tracker 35754 | -2/Section 7 | Spotted Tracker 35754 | -2/Section 7 | Spotted Tracker 35761 | -2/Section 7 | Destroyed Tracker 35762 | -2/Section 7 | Destroyed Tracker 35766 | -2/Section 7 | Destroyed Tracker 35800 | -2/Section 7 | Spotted Combat Programmer 35801 | -2/Section 7 | Spotted Combat Programmer 35802 | -2/Section 7 | Spotted Combat Programmer 35817 | -2/Section 7 | Destroyed Combat Programmer 35819 | -2/Section 7 | Destroyed Combat Programmer 35826 | -2/Section 7 | Destroyed Combat Programmer 35959 | -2/Section 7 | Spotted Executioner 35959 | -2/Section 7 | Spotted Executioner 35967 | -2/Section 7 | Destroyed Executioner 35972 | -2/Section 7 | Destroyed Executioner 36075 | -2/Section 7 | Found Drained L-Cannon 36076 | -2/Section 7 | Installed L-Cannon capacitor 36133 | -2/Section 7 | Fired L-Cannon 36143 | -2/Section 7 | Fired L-Cannon 36224 | -2/Section 7 | Found Sigix Sheargun 36227 | -2/Section 7 | Found Sigix Sheargun 36237 | -2/Section 7 | Spotted Striker 36237 | -2/Section 7 | Spotted Striker 36250 | -2/Section 7 | Destroyed Striker 36251 | -2/Section 7 | Destroyed Striker 36255 | -2/Section 7 | Spotted Striker 36255 | -2/Section 7 | Spotted Striker 36262 | -2/Section 7 | Destroyed Striker 36264 | -2/Section 7 | High security lockdown imminent 36264 | -2/Section 7 | Destroyed Striker 36344 | -2/Section 7 | High security lockdown engaged 36410 | -2/Section 7 | Destroyed 8 combat bots 36430 | -2/Section 7 | Intercept squad dispatched 36445 | -2/Section 7 | Spotted Tracker 36445 | -2/Section 7 | Spotted Tracker 36445 | -2/Section 7 | Spotted Tracker 36446 | -2/Section 7 | Spotted Tracker 36455 | -2/Section 7 | Destroyed Tracker 36461 | -2/Section 7 | Destroyed Tracker 36464 | -2/Section 7 | Destroyed Tracker 36469 | -2/Section 7 | Spotted Combat Programmer 36470 | -2/Section 7 | Spotted Combat Programmer 36475 | -2/Section 7 | Spotted Combat Programmer 36475 | -2/Section 7 | Fired L-Cannon 36480 | -2/Section 7 | Spotted Combat Programmer 36485 | -2/Section 7 | Fired L-Cannon 36505 | -2/Section 7 | Destroyed Tracker 36514 | -2/Section 7 | Destroyed Combat Programmer 36535 | -2/Section 7 | Destroyed 8 combat bots 36555 | -2/Section 7 | Spotted Executioner 36601 | -2/Section 7 | Spotted Investigator 36603 | -2/Section 7 | Scanned by Researcher 36604 | -2/Section 7 | Destroyed Investigator 36612 | -2/Section 7 | Destroyed Executioner 36659 | -2/Section 7 | Destroyed 15 combat bots 36693 | -2/Section 7 | Reached level 35 36712 | -2/Section 7 | Warped through subspace 36798 | -2/Section 7 | Discovered new exit (range 16) 36811 | -2/Section 7 | Build established: Alien-Assassin 36834 | -2/Section 7 | Spotted Striker 36834 | -2/Section 7 | Spotted Striker 36836 | -2/Section 7 | Spotted Executioner 36836 | -2/Section 7 | Spotted Striker 36836 | -2/Section 7 | Spotted Executioner 36840 | -2/Section 7 | Entered Access 36841 | -1/Access | Emitted hypermatrix ping 36841 | -1/Access | Core integrity fell below 50% 36846 | -1/Access | Assembled emerged from beneath the floor 36910 | -1/Access | Assembled emerged from beneath the floor 37013 | -1/Access | Energy Cycler disabled 37048 | -1/Access | Lost 3 allies 37051 | -1/Access | Garrison activated, responded to threat 37056 | -1/Access | Assembled emerged from beneath the floor 37090 | -1/Access | First assault squad dispatched 37107 | -1/Access | Incoming assault squad redirected 37235 | -1/Access | Discovered new exit (range 20) 37253 | -1/Access | Spotted B-99 Colossus 37258 | -1/Access | Spotted B-99 Colossus 37264 | -1/Access | High security lockdown imminent 37286 | -1/Access | Core integrity fell below 20% 37288 | -1/Access | Fired L-Cannon 37288 | -1/Access | Destroyed B-99 Colossus 37298 | -1/Access | Fired L-Cannon 37298 | -1/Access | Destroyed B-99 Colossus 37298 | -1/Access | Reached level 36 37318 | -1/Access | Lost 11 allies 37321 | -1/Access | Fired L-Cannon 37335 | -1/Access | Fired L-Cannon 37335 | -1/Access | Spotted Executioner 37335 | -1/Access | Destroyed Executioner 37344 | -1/Access | High security lockdown engaged 37345 | -1/Access | Spotted Executioner 37345 | -1/Access | Spotted Striker 37345 | -1/Access | Fired L-Cannon 37355 | -1/Access | Fired L-Cannon 37365 | -1/Access | Fired L-Cannon 37377 | -1/Access | Found Prototype Ballistic Gun 37385 | -1/Access | Entered Command 37386 | -1/Command | Emitted hypermatrix ping 37391 | -1/Command | Assembled emerged from beneath the floor 37450 | -1/Command | Identified Multirail 37465 | -1/Command | Assembled emerged from beneath the floor 37635 | -1/Command | First assault squad dispatched 37664 | -1/Command | Incoming assault squad redirected 37680 | -1/Command | Incoming investigation squad redirected 37693 | -1/Command | Used Subatomic Replicator to replicate L-Cannon 37711 | -1/Command | Fired L-Cannon 37711 | -1/Command | Phase Generator disabled 37746 | -1/Command | Assembled emerged from beneath the floor 37749 | -1/Command | Lost 12 allies 37838 | -1/Command | Discovered new exit (range 24) 37895 | -1/Command | Fired L-Cannon 37907 | -1/Command | Assembled emerged from beneath the floor 37932 | -1/Command | Incoming assault squad redirected 37966 | -1/Command | Lost 5 allies 37980 | -1/Command | Fired L-Cannon 37980 | -1/Command | Reached level 37 37989 | -1/Command | Build established: Alien-Gunner 37997 | -1/Command | Fired L-Cannon 38011 | -1/Command | Lost 6 allies 38014 | -1/Command | Fired L-Cannon 38049 | -1/Command | Fired L-Cannon 38059 | -1/Command | Fired L-Cannon 38060 | -1/Command | Incoming investigation squad redirected 38079 | -1/Command | Fired L-Cannon 38154 | -1/Command | Fired L-Cannon 38154 | -1/Command | 0b10 Conduit disabled 38155 | -1/Command | Incoming assault squad redirected 38157 | -1/Command | MAIN.C activated Command garrisons 38166 | -1/Command | Fired L-Cannon 38176 | -1/Command | Fired L-Cannon 38186 | -1/Command | Fired L-Cannon 38193 | -1/Command | Combat Programmer assimilated allied I-47 Archangel 38196 | -1/Command | Fired L-Cannon 38211 | -1/Command | Spotted Combat Programmer 38213 | -1/Command | Spotted Combat Programmer 38238 | -1/Command | Fired L-Cannon 38243 | -1/Command | All MAIN.C guards destroyed 38250 | -1/Command | Fired L-Cannon 38251 | -1/Command | L-Cannon capacitor drained 38262 | -1/Command | Fired L-Cannon 38272 | -1/Command | Fired L-Cannon 38272 | -1/Command | Reached level 38 38313 | -1/Command | Fired L-Cannon 38320 | -1/Command | Destroyed by S-43 Plague with Heavy Machine Gun Last Messages --------------- 38312_ Dropped Sigix Sheargun. 38313_ Activated siege mode. 38313_ Beam penetrates P-80 Master. 38313_ P-80 Master enveloped in phasic energy. 38313_ P-80 Master destroyed. 38313_ Beam penetrates P-80 Master. 38313_ P-80 Master enveloped in phasic energy. 38313_ P-80 Master destroyed. 38313_ Beam penetrates P-80 Master. 38313_ P-80 Master enveloped in phasic energy. 38313_ P-80 Master destroyed. 38313_ Beam penetrates P-80 Master. 38313_ P-80 Master enveloped in phasic energy. 38313_ P-80 Master destroyed. 38313_ Slug penetrates Wall. 38313_ Penetrated by Slug. 38315_ Slug penetrates Wall. 38316_ Penetrated by Slug. 38318_ Slug penetrates Wall. 38319_ Penetrated by Slug. Map ----- +----------------------------------------------------+ | ???????????????#??? ?#?###?####?############ %[= | | ????????????#??#? ?#########################!%*=/ | | ???????????????## #########################!%[=% | | ?????????????? # ?##########################=!=% | | ???????????? # ##########################[!%% | | ?????????##? # " ##########################*=%= | | ?????????## # # " " ########################!=!= | | ????????### # " " ######################## != | | ???????#?### " " ######################## [* | | ??????####### # " " ######################## | | ?????########" "%% "######################### | | ???? # " g="######################### | | ??? # ;!!g########################## | | ???? ## ;[gs#########################" | | ??#?######"""###;]=%[##################### " | | ??? #?##"""###;[%!!################### " | | ?""""""""""""####%=[!!##############;#; #? | | ? " "!$!%=|;=[=[=;= ### ##; ; ### | | ?## "+%%==!*[%%%[!=W ### W #;; W ;;"##### | | " " # %*=h!!![=[!!!%[*! + | | ??" # [!%!]!![!=!!=|%[! % +=[ | | " ?? !!!!*%==!!!!%=[=% % + ![*= | | ### ? #!!!!=!%[[%=[*%=!!= +!%[=%! | | # # ######*!%*%!=!*!%=[=!=[[ ![! [* +[%=%== | | ########## =!=###=!h[%!!%!;;![%=;;;=%!;;;!%%%* | | ?#############?## #[=][@[ ;=%!; ;[= ; %=# / | | #?############### #*##;;; ;;;;; ;;;;; %= " | | ################# #### #### [[! ### | | ###?###?##?###### ###### ####### #### | | ################# # ##### ###### ##### | | ?###?############ ####### #### # ####### | | ################# ############### ######## | | ?#?##?########### ############ # ######### | | ?################ ########### ########## | | ??####???######## # ##?##### ############+#+# | | ??#####??######## ######### ####### | | ??#######?####### ?# ##### ?######## | | ???########?##### ###### ######### ? | | ????###?###?##### ##### ########### | | ????#########??## #?## ############ ? ? | | ?????############ ## ############# ? ? | | ??????######### # # ############## ?? | | ???????##??#?#?## """"#####################????? | | ????????## ? ? ############## ????? | | ?????????#?#### #""?""## #####?######## ? ?????? | | ?????????? ###??" " " ?# ##########?###??????????? | | ???????????? ## " " # ? #######?##????? ????????? | | ??????????????? ??# #### ?#?####?????????????????? | | ?????????????????? # ? ?##?#?????????????????? | | ??????????????????????? ?????????????????????????? | +----------------------------------------------------+ Best States ------------- Heat Dissipation 185 Energy Generation 108 Energy Capacity 1200 Matter Stores 300 Matter Capacity 300 Sight Range 22 Robot Scan Range 24 Terrain Scan Range 24 Terrain Scan Density 210 Additional Mass Support 12 Armor Coverage 800 Resistance: KI 20 Resistance: TH 50 Resistance: EM 100 Utility Shielding 66 Weapon Cycling 20 Evasion (%) 54 Core Analysis 12 Armor Integrity Analysis 30 Recoil Reduction 4 Energy Filtering 50 Particle Charging 65 Offensive Hacking 41 Defensive Hacking 50 Trap Extractor Capacity 6 Item Schematics ----------------- Cmb. Linear Gravjet | -2/Quarantine | Hacked Exp. Biometal Leg | -2/Quarantine | Archive Hdn. Centrium Wheel | -2/Quarantine | Archive Exp. Thermal Shield | -2/Quarantine | Archive Centrium Heavy Armor Plating | -2/Quarantine | Archive Proton Burst Cannon | -2/Quarantine | Archive Thermal Defense Suite | -2/Quarantine | Archive Tactical Quantum Warhead | -2/Quarantine | Archive Prc. Phase Gun | -2/Quarantine | Archive Electron Diverter | -2/Quarantine | Archive Hellfire Missile Launcher | -2/Quarantine | Archive Exp. EM Disruption Field | -2/Quarantine | Archive Imp. Energy Well | -2/Section 7 | Archive Exp. System Shield | -2/Section 7 | Archive Adv. Energy Well | -2/Section 7 | Archive Adv. KE Penetrator | -2/Section 7 | Archive Diametric Drive | -2/Section 7 | Archive Exp. Core Analyzer | -2/Section 7 | Archive Cld. Impulse Thruster | -2/Section 7 | Archive Robot Schematics ------------------ A-02 Transporter | -2/Section 7 | Archive G-73 Enforcer | -2/Section 7 | Archive B-74 Champion | -2/Section 7 | Archive Y-72 Warden | -2/Section 7 | Archive Fabricated ------------ S-27 Virus | x4 | -7/Factory | Preloaded Neutrino Core | x2 | -7/Factory | Preloaded O-24 Administrator | x1 | -7/Factory O-24 Administrator | x1 | -7/Factory Gravity Neutralizer | x1 | -6/Factory Combat Drone Bay | x1 | -6/Factory Cmb. Gravmag System | x2 | -6/Factory Quantum Capacitor | x2 | -5/Factory Lrn. Terrain Scanner | x1 | -4/Factory Quantum Reactor | x2 | -4/Factory Adv. Particle Accelerator | x1 | -4/Factory Adv. Particle Accelerator | x1 | -3/Research Y-54 Guardian | x2 | -3/Armory Alien Tech Used ----------------- Integrated Dissipator Core Expander LC Capacitor Core Reset Matrix Core Stripper Integrated Thermoelectric Network Integrated Mediator Core Physics Calibrator LRC Insulator LRC Armor Drained L-Cannon L-Cannon Sigix Sheargun Subatomic Replicator High-powered Transdimensional Reconstructor Achievements -------------- None Challenges ------------ None RPGLIKE | -11 -10 -10 -10 -8 -7 -7 -7 -7 -7 -7 -6 -6 -6 -6 -6 -6 -5 -5 -5 -5 -4 -4 -4 -4 -4 -3 -3 -3 -3 -2 -2 -2 -1 -1 --------- Run | Yrd Mat Min Sub Mat Fac Was Fac Low Low Dat Pro Fac Ext Cet Arc Hub Fac Upp Upp Zhi Pro Fac Upp Upp War Pro Res Arm Lab Res Qua Sec Acc Com Levels Raised 37 | . 1 . 2 1 4 . 6 1 . . 2 2 . 1 . . 2 1 . . 1 1 . 1 . 1 1 1 1 1 1 2 1 2 XP Earned 58641 | 3100 1475 1210 2050 2400 5297 215 8902 1139 601 220 2163 2853 1061 667 168 560 2860 759 520 105 1443 1817 232 285 1080 1117 1235 2141 853 1501 1403 2643 1613 2953 XP Spent 58400 | 2900 . 60 3550 2345 5215 . 6900 1100 2900 . 1925 1700 . 4000 . . 1300 3500 . . . 1250 . . 1500 . 3800 . . 1100 5375 1425 3355 3200 Upgrades 102 | 10 . 2 13 3 12 . 3 1 1 . 11 6 . 2 . . 2 1 . . . 1 . . 1 . 1 . . 1 6 6 11 8 Power Slot 2 | . . . . . . . . . . . . 1 . 1 . . . . . . . . . . . . . . . . . . . . Propulsion Slot 3 | 1 . . . 1 . . . 1 . . . . . . . . . . . . . . . . . . . . . . . . . . Utility Slot 12 | 1 . . 2 1 1 . 3 . 1 . . . . 1 . . . 1 . . . . . . . . 1 . . . . . . . Weapon Slot 3 | 1 . . . . . . . . . . . 1 . . . . . . . . . . . . . . . . . 1 . . . . Core Integrity 42 | . . 2 10 1 5 . . . . . . . . . . . . . . . . . . . . . . . . . . 5 11 8 Heat Dissipation 5 | . . . . . 1 . . . . . . 4 . . . . . . . . . . . . . . . . . . . . . . Energy Generation 1 | . . . . . . . . . . . . . . . . . . . . . . . . . . . . . . . . 1 . . Mass Support 2 | 1 . . . . 1 . . . . . . . . . . . . . . . . . . . . . . . . . . . . . Inventory Capacity 8 | 2 . . 1 . 1 . . . . . . . . . . . . . . . . 1 . . 1 . . . . . 2 . . . Sight Range 1 | 1 . . . . . . . . . . . . . . . . . . . . . . . . . . . . . . . . . . Sensor Range 12 | . . . . . . . . . . . 11 . . . . . . . . . . . . . . . . . . . 1 . . . Terrain Scan Density 2 | 1 . . . . 1 . . . . . . . . . . . . . . . . . . . . . . . . . . . . . Ranged Accuracy 5 | . . . . . 2 . . . . . . . . . . . 2 . . . . . . . . . . . . . 1 . . . Hack Attack % 1 | 1 . . . . . . . . . . . . . . . . . . . . . . . . . . . . . . . . . . Hack Defense % 1 | 1 . . . . . . . . . . . . . . . . . . . . . . . . . . . . . . . . . . KI Resistance % 2 | . . . . . . . . . . . . . . . . . . . . . . . . . . . . . . . 2 . . . Protomatter Created 11713 | . 143 45 341 38 302 . 316 311 104 . 337 675 374 . 122 254 1169 285 305 . 418 840 153 136 248 201 127 1182 . 290 835 1768 155 239 Integrity Restored 24289 | . 370 255 699 . 1203 222 1294 495 405 . 843 984 1251 640 487 368 2685 425 632 . 880 916 155 59 723 636 366 1978 . 932 1366 1901 597 522 Core 20244 | . 236 255 699 . 1203 222 1223 152 405 . 533 916 953 616 176 285 2487 392 163 . 764 595 98 39 723 636 152 1831 . 905 752 1714 597 522 Parts 4045 | . 134 . . . . . 71 343 . . 310 68 298 24 311 83 198 33 469 . 116 321 57 20 . . 214 147 . 27 614 187 . . Protomatter Decayed 8640 | 4 . 8 147 . . . 52 76 . . . 237 136 . . 124 94 . 41 64 5 334 83 61 490 . . 174 . 757 284 1033 91 4345 Game ------ Seed ThermalAlphaExpander Manual? 0 Play Time 07:20:35 Cumulative 604.7 hours Start 2024.03.12 @ 15:56:32 End 2024.03.13 @ 23:10:06 Sessions 3 Manual Loads 0 Difficulty Rogue Special Mode Winter2019/RPGLIKE Game No. 227 Rogue 205 Adventurer 3 Explorer 19 Win Type - Total 13 Types 8/2/1/1/0/1/0/0/0 Lore% 88 Gallery% 95 Achievement% 82 Wizard Run 0 Options --------- Layout 2 ASCII 0 Keyboard 0 Movement Numpad Keybinds 0 Fullscreen 2 Font 24/Smallcaps Map View 50x44 Zoom Use 0% Tactical HUD 1 Map Filters NONE Filters NONE Steam 1 RUN: 85ca536e-03e3-46ea-b512-e71391f2f1b7